{"text_format":"1","workbook":"xlsx","n_sheets":7,"sheets":["Directives","Frais médicaux","Frais médicaux (3)","Frais médicaux (2)","Liste de frais courants","Admissibles","Non admissibles"],"not_rendered":{"charts":0,"images":5,"macros":1,"external_links":0,"defined_names":10,"comments":0,"pivot_tables":0},"unopened":[],"bounds":{"document_bytes":16777216,"sheet_cells":100000,"rows_first":2000,"rows_last":500,"rows_between":2000,"halvings":0,"cell_chars":16384,"cell_head_chars":4096},"cells_cut":0,"cells_raw":0,"read":"whole","date_system":"1900"}

{"sheet":"Directives","index":0,"n_rows":46,"n_cols":6,"rows_kept":46,"cut":false,"hidden":false,"merged":[[1,0,1,7],[9,2,9,5],[7,2,7,5],[45,2,45,3],[44,2,44,3],[43,2,43,3],[29,2,29,5],[3,2,3,5],[11,2,11,5],[5,2,5,5],[16,2,16,5],[42,2,42,3],[41,2,41,3],[40,2,40,3],[39,2,39,3],[38,2,38,3],[13,2,14,5],[37,2,37,3],[36,2,36,3],[34,2,34,3],[33,2,33,3],[31,2,31,3],[32,2,32,3],[35,2,35,3]]}
[]
["Tableau des frais médicaux - Directives et précisions"]
[]
[null,null,"Étape 1 : Inscrivez le prénom des membres de votre famille dans tableau de l'étape 1."]
[]
[null,null,"Étape 2 : Compléter le tableau de l'étape 2 à l'aide de vos reçus de frais médicaux et vos relevés détaillés d'assurance, le cas échéant.\n"]
[]
[null,null,"                Des menus déroulants ont été prévus pour les noms des membres de votre famille et les types de frais médicaux."]
[]
[null,null,"                Nous avons prévu jusqu'à deux compagnies d'assurance qui pourraient rembourser vos frais.\n                Modifiez le nom « Compagnie 1 » et « Compagnie 2 » par le nom de votre assureur (exemple : Desjardins). "]
[]
[null,null,"                Nous avons dressé une liste des frais et professionnels les plus fréquents. Si aucun choix ne s'applique à votre situation, veuillez\n                sélectionner le type « Autre » et inscrire le détail des frais engagés dans la colonne « Commentaire ».\n                Escient fera l'analyse de la déductibilité de ceux-ci. "]
[]
[null,null,"                Veuillez cliquer sur \"Activer le contenu\" en haut de votre écran afin que les menus déroulant apparaissent et que les calculs\n                s'effectuent."]
[]
[]
[null,null,"Nous avons regroupé certains types de frais médicaux.  Voici les catégories regroupant plusieurs frais et professionnels :"]
[]
[null,null,"Traitement esthétique","Médicament","Médical","Psychothérapie"]
[null,null,"Injection (esthétique)","Médicament sous ordonnance (excluant les vitamines)","Médecin et médecine privée","Psychologue"]
[null,null,"Botox (esthétique)","Oxygène","Inhalothérapeute","Psychothérapeute"]
[null,null,"Chirurgie esthétique","Extrait hépatique injectable","Analyses médicales\n(sang, urine, etc.)","Psychoéducateur"]
[null,null,"Blanchiment des dents","Vitamine B12 (anémie)","Examen radiologique (rayon X)","Thérapeute conjugal et familial "]
[null,null,"Épilation","Insuline","Sage-femme","Sexologue"]
[null,null,"Détatouage","Cannabis et sous-produits à des fins médicales","Imagerie par résonance magnétique (IRM)","Travailleur social"]
[null,null,"Traitement des taches au laser",null,"Échographie","Conseiller d'orientation"]
[null,null,null,null,"Scan","Criminologue"]
[null,null,null,null,"Frais payés pour un certificat ou attestation médicale "]
[]
[null,null,"À titre informatif, voici une liste non exhaustive des frais qui ne sont pas admissibles au fédéral et/ou au Québec :"]
[]
[null,null,"Type de frais",null,"Fédéral","Québec "]
[null,null,"Adhésion ou frais annuels en clinique privée",null,"X","X"]
[null,null,"Chirurgie et traitement esthétique ",null,"X","X"]
[null,null,"Eau distillée pour CPAP",null,"X","X"]
[null,null,"Frais payés d'avance, services non encore rendus\n(exemple : orthodontie)",null,"X","X"]
[null,null,"Homéopathie",null,"X"]
[null,null,"Massothérapie",null,"X","X"]
[null,null,"Médicament en vente libre ou sans ordonnance",null,"X","X"]
[null,null,"Monture de lunettes",null,null,"Jusqu'à 200 $ "]
[null,null,"Naturopathie",null,"X"]
[null,null,"Orthothérapie",null,"X","X"]
[null,null,"Osthéopathie",null,"X"]
[null,null,"Phytothérapie",null,"X"]
[null,null,"Psychanalyse",null,"X"]
[null,null,"Les vitamines ",null,"X","X"]

{"sheet":"Frais médicaux","index":1,"n_rows":50,"n_cols":12,"rows_kept":50,"cut":false,"hidden":false,"merged":[[0,1,0,3],[20,9,20,10],[20,1,20,4],[6,3,6,5]]}
[null,null,null,null,null,null,null,null,null,null,null,2024]
[null,"Tableau des frais médicaux",null,null,null,null,null,"VEUILLEZ ACTIVER LES MACROS POUR QUE LE FICHIER FONCTIONNE CORRECTEMENT "]
[]
[]
[null,"Étape 1 : Inscrivez le prénom des membres de votre famille "]
[]
[null,null,null,"Montant admissible",null,null,null,"IMPORTANT :"]
[null," ","Prénom","Fédéral","Québec","QC seulement"]
[null,"Parent 1",null,{"$f":"SUMIF(Tableau1[Prénom],C9,$J$23:$J$50)","v":0},{"$f":"SUMIF(Tableau1[Prénom],C9,$K$23:$K$50)","v":0},{"$f":"Tableau5[[#This Row],[Québec]]-Tableau5[[#This Row],[Fédéral]]","v":0},null,"Consultez l'onglet « Directives » pour plus de détails sur la préparation de ce tableau."]
[null,"Parent 2",null,{"$f":"SUMIF(Tableau1[Prénom],C10,$J$23:$J$50)","v":0},{"$f":"SUMIF(Tableau1[Prénom],C10,$K$23:$K$50)","v":0},{"$f":"Tableau5[[#This Row],[Québec]]-Tableau5[[#This Row],[Fédéral]]","v":0},null,"Les cases rosées se calculent automatiquement. Aucune donnée ne doit y être saisie."]
[null,"Enfant 1",null,{"$f":"SUMIF(Tableau1[Prénom],C11,$J$23:$J$50)","v":0},{"$f":"SUMIF(Tableau1[Prénom],C11,$K$23:$K$50)","v":0},{"$f":"Tableau5[[#This Row],[Québec]]-Tableau5[[#This Row],[Fédéral]]","v":0},null,"Appuyez simultanément sur les touches (Ctrl + M) pour insérer une nouvelle ligne."]
[null,"Enfant 2",null,{"$f":"SUMIF(Tableau1[Prénom],C12,$J$23:$J$50)","v":0},{"$f":"SUMIF(Tableau1[Prénom],C12,$K$23:$K$50)","v":0},{"$f":"Tableau5[[#This Row],[Québec]]-Tableau5[[#This Row],[Fédéral]]","v":0}]
[null,"Enfant 3",null,{"$f":"SUMIF(Tableau1[Prénom],C13,$J$23:$J$50)","v":0},{"$f":"SUMIF(Tableau1[Prénom],C13,$K$23:$K$50)","v":0},{"$f":"Tableau5[[#This Row],[Québec]]-Tableau5[[#This Row],[Fédéral]]","v":0},null,"Veuillez inclure vos primes payées à un régime privé (médical, dentaire, voyage)."]
[null,"Enfant 4",null,{"$f":"SUMIF(Tableau1[Prénom],C14,$J$23:$J$50)","v":0},{"$f":"SUMIF(Tableau1[Prénom],C14,$K$23:$K$50)","v":0},{"$f":"Tableau5[[#This Row],[Québec]]-Tableau5[[#This Row],[Fédéral]]","v":0},null,"Ne pas inclure vos primes d'assurances collectives incluses sur vos relevés d'emploi (T4/RL1 ou T4A/RL2)."]
[null,"Enfant 5",null,{"$f":"SUMIF(Tableau1[Prénom],C15,$J$23:$J$50)","v":0},{"$f":"SUMIF(Tableau1[Prénom],C15,$K$23:$K$50)","v":0},{"$f":"Tableau5[[#This Row],[Québec]]-Tableau5[[#This Row],[Fédéral]]","v":0}]
[null,null,"Total  : ",{"$f":"SUBTOTAL(109,Tableau5[Fédéral])","v":0},{"$f":"SUBTOTAL(109,Tableau5[Québec])","v":0},{"$f":"SUBTOTAL(109,Tableau5[QC seulement])","v":0},null,"Veuillez nous transmettre tous vos reçus de frais médicaux ainsi que les relevés détaillés de vos assureurs."]
[]
[]
[null,"Étape 2 : Complétez le détail des frais médicaux "]
[]
[null,"Détail des frais médicaux",null,null,null,"Montant remboursé par les assurances",null,null,null,"Montant admissible"]
[null,"Date","Prénom","Type de frais ","Montant total","Compagnie 1","Compagnie 2","Total","Montant net payé","Fédéral","Québec","Commentaire"]
[null,null,null,null,null,null,null,{"$f":"Tableau1[[#This Row],[Compagnie 1]]+Tableau1[[#This Row],[Compagnie 2]]","v":0},{"$f":"Tableau1[[#This Row],[Montant total]]-Tableau1[[#This Row],[Total]]","v":0},{"$f":"IF(AND(Tableau1[[#This Row],[Type de frais ]]<>'Liste de frais courants'!$A$15,Tableau1[[#This Row],[Type de frais ]]<>'Liste de frais courants'!$A$18,Tableau1[[#This Row],[Type de frais ]]<>'Liste de frais courants'!$A$20,Tableau1[[#This Row],[Type de frais ]]<>'Liste de frais courants'!$A$33,Tableau1[[#This Row],[Type de frais ]]<>'Liste de frais courants'!$A$37,Tableau1[[#This Row],[Type de frais ]]<>'Liste de frais courants'!$A$39,Tableau1[[#This Row],[Type de frais ]]<>'Liste de frais courants'!$A$48),Tableau1[[#This Row],[Montant net payé]],0)","v":0},{"$f":"IF(AND(Tableau1[[#This Row],[Type de frais ]]<>'Liste de frais courants'!$A$48,Tableau1[[#This Row],[Type de frais ]]<>'Liste de frais courants'!$A$18,Tableau1[[#This Row],[Type de frais ]]<>'Liste de frais courants'!$A$20,Tableau1[[#This Row],[Type de frais ]]<>'Liste de frais courants'!$A$32),Tableau1[[#This Row],[Montant net payé]],0)+IF(Tableau1[[#This Row],[Type de frais ]]='Liste de frais courants'!$A$32,MIN(Tableau1[[#This Row],[Montant net payé]],200),0)","v":0}]
[null,null,null,null,null,null,null,{"$f":"Tableau1[[#This Row],[Compagnie 1]]+Tableau1[[#This Row],[Compagnie 2]]","v":0},{"$f":"Tableau1[[#This Row],[Montant total]]-Tableau1[[#This Row],[Total]]","v":0},{"$f":"IF(AND(Tableau1[[#This Row],[Type de frais ]]<>'Liste de frais courants'!$A$15,Tableau1[[#This Row],[Type de frais ]]<>'Liste de frais courants'!$A$18,Tableau1[[#This Row],[Type de frais ]]<>'Liste de frais courants'!$A$20,Tableau1[[#This Row],[Type de frais ]]<>'Liste de frais courants'!$A$33,Tableau1[[#This Row],[Type de frais ]]<>'Liste de frais courants'!$A$37,Tableau1[[#This Row],[Type de frais ]]<>'Liste de frais courants'!$A$39,Tableau1[[#This Row],[Type de frais ]]<>'Liste de frais courants'!$A$48),Tableau1[[#This Row],[Montant net payé]],0)","v":0},{"$f":"IF(AND(Tableau1[[#This Row],[Type de frais ]]<>'Liste de frais courants'!$A$48,Tableau1[[#This Row],[Type de frais ]]<>'Liste de frais courants'!$A$18,Tableau1[[#This Row],[Type de frais ]]<>'Liste de frais courants'!$A$20,Tableau1[[#This Row],[Type de frais ]]<>'Liste de frais courants'!$A$32),Tableau1[[#This Row],[Montant net payé]],0)+IF(Tableau1[[#This Row],[Type de frais ]]='Liste de frais courants'!$A$32,MIN(Tableau1[[#This Row],[Montant net payé]],200),0)","v":0}]
[null,null,null,null,null,null,null,{"$f":"Tableau1[[#This Row],[Compagnie 1]]+Tableau1[[#This Row],[Compagnie 2]]","v":0},{"$f":"Tableau1[[#This Row],[Montant total]]-Tableau1[[#This Row],[Total]]","v":0},{"$f":"IF(AND(Tableau1[[#This Row],[Type de frais ]]<>'Liste de frais courants'!$A$15,Tableau1[[#This Row],[Type de frais ]]<>'Liste de frais courants'!$A$18,Tableau1[[#This Row],[Type de frais ]]<>'Liste de frais courants'!$A$20,Tableau1[[#This Row],[Type de frais ]]<>'Liste de frais courants'!$A$33,Tableau1[[#This Row],[Type de frais ]]<>'Liste de frais courants'!$A$37,Tableau1[[#This Row],[Type de frais ]]<>'Liste de frais courants'!$A$39,Tableau1[[#This Row],[Type de frais ]]<>'Liste de frais courants'!$A$48),Tableau1[[#This Row],[Montant net payé]],0)","v":0},{"$f":"IF(AND(Tableau1[[#This Row],[Type de frais ]]<>'Liste de frais courants'!$A$48,Tableau1[[#This Row],[Type de frais ]]<>'Liste de frais courants'!$A$18,Tableau1[[#This Row],[Type de frais ]]<>'Liste de frais courants'!$A$20,Tableau1[[#This Row],[Type de frais ]]<>'Liste de frais courants'!$A$32),Tableau1[[#This Row],[Montant net payé]],0)+IF(Tableau1[[#This Row],[Type de frais ]]='Liste de frais courants'!$A$32,MIN(Tableau1[[#This Row],[Montant net payé]],200),0)","v":0}]
[null,null,null,null,null,null,null,{"$f":"Tableau1[[#This Row],[Compagnie 1]]+Tableau1[[#This Row],[Compagnie 2]]","v":0},{"$f":"Tableau1[[#This Row],[Montant total]]-Tableau1[[#This Row],[Total]]","v":0},{"$f":"IF(AND(Tableau1[[#This Row],[Type de frais ]]<>'Liste de frais courants'!$A$15,Tableau1[[#This Row],[Type de frais ]]<>'Liste de frais courants'!$A$18,Tableau1[[#This Row],[Type de frais ]]<>'Liste de frais courants'!$A$20,Tableau1[[#This Row],[Type de frais ]]<>'Liste de frais courants'!$A$33,Tableau1[[#This Row],[Type de frais ]]<>'Liste de frais courants'!$A$37,Tableau1[[#This Row],[Type de frais ]]<>'Liste de frais courants'!$A$39,Tableau1[[#This Row],[Type de frais ]]<>'Liste de frais courants'!$A$48),Tableau1[[#This Row],[Montant net payé]],0)","v":0},{"$f":"IF(AND(Tableau1[[#This Row],[Type de frais ]]<>'Liste de frais courants'!$A$48,Tableau1[[#This Row],[Type de frais ]]<>'Liste de frais courants'!$A$18,Tableau1[[#This Row],[Type de frais ]]<>'Liste de frais courants'!$A$20,Tableau1[[#This Row],[Type de frais ]]<>'Liste de frais courants'!$A$32),Tableau1[[#This Row],[Montant net payé]],0)+IF(Tableau1[[#This Row],[Type de frais ]]='Liste de frais courants'!$A$32,MIN(Tableau1[[#This Row],[Montant net payé]],200),0)","v":0}]
[null,null,null,null,null,null,null,{"$f":"Tableau1[[#This Row],[Compagnie 1]]+Tableau1[[#This Row],[Compagnie 2]]","v":0},{"$f":"Tableau1[[#This Row],[Montant total]]-Tableau1[[#This Row],[Total]]","v":0},{"$f":"IF(AND(Tableau1[[#This Row],[Type de frais ]]<>'Liste de frais courants'!$A$15,Tableau1[[#This Row],[Type de frais ]]<>'Liste de frais courants'!$A$18,Tableau1[[#This Row],[Type de frais ]]<>'Liste de frais courants'!$A$20,Tableau1[[#This Row],[Type de frais ]]<>'Liste de frais courants'!$A$33,Tableau1[[#This Row],[Type de frais ]]<>'Liste de frais courants'!$A$37,Tableau1[[#This Row],[Type de frais ]]<>'Liste de frais courants'!$A$39,Tableau1[[#This Row],[Type de frais ]]<>'Liste de frais courants'!$A$48),Tableau1[[#This Row],[Montant net payé]],0)","v":0},{"$f":"IF(AND(Tableau1[[#This Row],[Type de frais ]]<>'Liste de frais courants'!$A$48,Tableau1[[#This Row],[Type de frais ]]<>'Liste de frais courants'!$A$18,Tableau1[[#This Row],[Type de frais ]]<>'Liste de frais courants'!$A$20,Tableau1[[#This Row],[Type de frais ]]<>'Liste de frais courants'!$A$32),Tableau1[[#This Row],[Montant net payé]],0)+IF(Tableau1[[#This Row],[Type de frais ]]='Liste de frais courants'!$A$32,MIN(Tableau1[[#This Row],[Montant net payé]],200),0)","v":0}]
[null,null,null,null,null,null,null,{"$f":"Tableau1[[#This Row],[Compagnie 1]]+Tableau1[[#This Row],[Compagnie 2]]","v":0},{"$f":"Tableau1[[#This Row],[Montant total]]-Tableau1[[#This Row],[Total]]","v":0},{"$f":"IF(AND(Tableau1[[#This Row],[Type de frais ]]<>'Liste de frais courants'!$A$15,Tableau1[[#This Row],[Type de frais ]]<>'Liste de frais courants'!$A$18,Tableau1[[#This Row],[Type de frais ]]<>'Liste de frais courants'!$A$20,Tableau1[[#This Row],[Type de frais ]]<>'Liste de frais courants'!$A$33,Tableau1[[#This Row],[Type de frais ]]<>'Liste de frais courants'!$A$37,Tableau1[[#This Row],[Type de frais ]]<>'Liste de frais courants'!$A$39,Tableau1[[#This Row],[Type de frais ]]<>'Liste de frais courants'!$A$48),Tableau1[[#This Row],[Montant net payé]],0)","v":0},{"$f":"IF(AND(Tableau1[[#This Row],[Type de frais ]]<>'Liste de frais courants'!$A$48,Tableau1[[#This Row],[Type de frais ]]<>'Liste de frais courants'!$A$18,Tableau1[[#This Row],[Type de frais ]]<>'Liste de frais courants'!$A$20,Tableau1[[#This Row],[Type de frais ]]<>'Liste de frais courants'!$A$32),Tableau1[[#This Row],[Montant net payé]],0)+IF(Tableau1[[#This Row],[Type de frais ]]='Liste de frais courants'!$A$32,MIN(Tableau1[[#This Row],[Montant net payé]],200),0)","v":0}]
[null,null,null,null,null,null,null,{"$f":"Tableau1[[#This Row],[Compagnie 1]]+Tableau1[[#This Row],[Compagnie 2]]","v":0},{"$f":"Tableau1[[#This Row],[Montant total]]-Tableau1[[#This Row],[Total]]","v":0},{"$f":"IF(AND(Tableau1[[#This Row],[Type de frais ]]<>'Liste de frais courants'!$A$15,Tableau1[[#This Row],[Type de frais ]]<>'Liste de frais courants'!$A$18,Tableau1[[#This Row],[Type de frais ]]<>'Liste de frais courants'!$A$20,Tableau1[[#This Row],[Type de frais ]]<>'Liste de frais courants'!$A$33,Tableau1[[#This Row],[Type de frais ]]<>'Liste de frais courants'!$A$37,Tableau1[[#This Row],[Type de frais ]]<>'Liste de frais courants'!$A$39,Tableau1[[#This Row],[Type de frais ]]<>'Liste de frais courants'!$A$48),Tableau1[[#This Row],[Montant net payé]],0)","v":0},{"$f":"IF(AND(Tableau1[[#This Row],[Type de frais ]]<>'Liste de frais courants'!$A$48,Tableau1[[#This Row],[Type de frais ]]<>'Liste de frais courants'!$A$18,Tableau1[[#This Row],[Type de frais ]]<>'Liste de frais courants'!$A$20,Tableau1[[#This Row],[Type de frais ]]<>'Liste de frais courants'!$A$32),Tableau1[[#This Row],[Montant net payé]],0)+IF(Tableau1[[#This Row],[Type de frais ]]='Liste de frais courants'!$A$32,MIN(Tableau1[[#This Row],[Montant net payé]],200),0)","v":0}]
[null,null,null,null,null,null,null,{"$f":"Tableau1[[#This Row],[Compagnie 1]]+Tableau1[[#This Row],[Compagnie 2]]","v":0},{"$f":"Tableau1[[#This Row],[Montant total]]-Tableau1[[#This Row],[Total]]","v":0},{"$f":"IF(AND(Tableau1[[#This Row],[Type de frais ]]<>'Liste de frais courants'!$A$15,Tableau1[[#This Row],[Type de frais ]]<>'Liste de frais courants'!$A$18,Tableau1[[#This Row],[Type de frais ]]<>'Liste de frais courants'!$A$20,Tableau1[[#This Row],[Type de frais ]]<>'Liste de frais courants'!$A$33,Tableau1[[#This Row],[Type de frais ]]<>'Liste de frais courants'!$A$37,Tableau1[[#This Row],[Type de frais ]]<>'Liste de frais courants'!$A$39,Tableau1[[#This Row],[Type de frais ]]<>'Liste de frais courants'!$A$48),Tableau1[[#This Row],[Montant net payé]],0)","v":0},{"$f":"IF(AND(Tableau1[[#This Row],[Type de frais ]]<>'Liste de frais courants'!$A$48,Tableau1[[#This Row],[Type de frais ]]<>'Liste de frais courants'!$A$18,Tableau1[[#This Row],[Type de frais ]]<>'Liste de frais courants'!$A$20,Tableau1[[#This Row],[Type de frais ]]<>'Liste de frais courants'!$A$32),Tableau1[[#This Row],[Montant net payé]],0)+IF(Tableau1[[#This Row],[Type de frais ]]='Liste de frais courants'!$A$32,MIN(Tableau1[[#This Row],[Montant net payé]],200),0)","v":0}]
[null,null,null,null,null,null,null,{"$f":"Tableau1[[#This Row],[Compagnie 1]]+Tableau1[[#This Row],[Compagnie 2]]","v":0},{"$f":"Tableau1[[#This Row],[Montant total]]-Tableau1[[#This Row],[Total]]","v":0},{"$f":"IF(AND(Tableau1[[#This Row],[Type de frais ]]<>'Liste de frais courants'!$A$15,Tableau1[[#This Row],[Type de frais ]]<>'Liste de frais courants'!$A$18,Tableau1[[#This Row],[Type de frais ]]<>'Liste de frais courants'!$A$20,Tableau1[[#This Row],[Type de frais ]]<>'Liste de frais courants'!$A$33,Tableau1[[#This Row],[Type de frais ]]<>'Liste de frais courants'!$A$37,Tableau1[[#This Row],[Type de frais ]]<>'Liste de frais courants'!$A$39,Tableau1[[#This Row],[Type de frais ]]<>'Liste de frais courants'!$A$48),Tableau1[[#This Row],[Montant net payé]],0)","v":0},{"$f":"IF(AND(Tableau1[[#This Row],[Type de frais ]]<>'Liste de frais courants'!$A$48,Tableau1[[#This Row],[Type de frais ]]<>'Liste de frais courants'!$A$18,Tableau1[[#This Row],[Type de frais ]]<>'Liste de frais courants'!$A$20,Tableau1[[#This Row],[Type de frais ]]<>'Liste de frais courants'!$A$32),Tableau1[[#This Row],[Montant net payé]],0)+IF(Tableau1[[#This Row],[Type de frais ]]='Liste de frais courants'!$A$32,MIN(Tableau1[[#This Row],[Montant net payé]],200),0)","v":0}]
[null,null,null,null,null,null,null,{"$f":"Tableau1[[#This Row],[Compagnie 1]]+Tableau1[[#This Row],[Compagnie 2]]","v":0},{"$f":"Tableau1[[#This Row],[Montant total]]-Tableau1[[#This Row],[Total]]","v":0},{"$f":"IF(AND(Tableau1[[#This Row],[Type de frais ]]<>'Liste de frais courants'!$A$15,Tableau1[[#This Row],[Type de frais ]]<>'Liste de frais courants'!$A$18,Tableau1[[#This Row],[Type de frais ]]<>'Liste de frais courants'!$A$20,Tableau1[[#This Row],[Type de frais ]]<>'Liste de frais courants'!$A$33,Tableau1[[#This Row],[Type de frais ]]<>'Liste de frais courants'!$A$37,Tableau1[[#This Row],[Type de frais ]]<>'Liste de frais courants'!$A$39,Tableau1[[#This Row],[Type de frais ]]<>'Liste de frais courants'!$A$48),Tableau1[[#This Row],[Montant net payé]],0)","v":0},{"$f":"IF(AND(Tableau1[[#This Row],[Type de frais ]]<>'Liste de frais courants'!$A$48,Tableau1[[#This Row],[Type de frais ]]<>'Liste de frais courants'!$A$18,Tableau1[[#This Row],[Type de frais ]]<>'Liste de frais courants'!$A$20,Tableau1[[#This Row],[Type de frais ]]<>'Liste de frais courants'!$A$32),Tableau1[[#This Row],[Montant net payé]],0)+IF(Tableau1[[#This Row],[Type de frais ]]='Liste de frais courants'!$A$32,MIN(Tableau1[[#This Row],[Montant net payé]],200),0)","v":0}]
[null,null,null,null,null,null,null,{"$f":"Tableau1[[#This Row],[Compagnie 1]]+Tableau1[[#This Row],[Compagnie 2]]","v":0},{"$f":"Tableau1[[#This Row],[Montant total]]-Tableau1[[#This Row],[Total]]","v":0},{"$f":"IF(AND(Tableau1[[#This Row],[Type de frais ]]<>'Liste de frais courants'!$A$15,Tableau1[[#This Row],[Type de frais ]]<>'Liste de frais courants'!$A$18,Tableau1[[#This Row],[Type de frais ]]<>'Liste de frais courants'!$A$20,Tableau1[[#This Row],[Type de frais ]]<>'Liste de frais courants'!$A$33,Tableau1[[#This Row],[Type de frais ]]<>'Liste de frais courants'!$A$37,Tableau1[[#This Row],[Type de frais ]]<>'Liste de frais courants'!$A$39,Tableau1[[#This Row],[Type de frais ]]<>'Liste de frais courants'!$A$48),Tableau1[[#This Row],[Montant net payé]],0)","v":0},{"$f":"IF(AND(Tableau1[[#This Row],[Type de frais ]]<>'Liste de frais courants'!$A$48,Tableau1[[#This Row],[Type de frais ]]<>'Liste de frais courants'!$A$18,Tableau1[[#This Row],[Type de frais ]]<>'Liste de frais courants'!$A$20,Tableau1[[#This Row],[Type de frais ]]<>'Liste de frais courants'!$A$32),Tableau1[[#This Row],[Montant net payé]],0)+IF(Tableau1[[#This Row],[Type de frais ]]='Liste de frais courants'!$A$32,MIN(Tableau1[[#This Row],[Montant net payé]],200),0)","v":0}]
[null,null,null,null,null,null,null,{"$f":"Tableau1[[#This Row],[Compagnie 1]]+Tableau1[[#This Row],[Compagnie 2]]","v":0},{"$f":"Tableau1[[#This Row],[Montant total]]-Tableau1[[#This Row],[Total]]","v":0},{"$f":"IF(AND(Tableau1[[#This Row],[Type de frais ]]<>'Liste de frais courants'!$A$15,Tableau1[[#This Row],[Type de frais ]]<>'Liste de frais courants'!$A$18,Tableau1[[#This Row],[Type de frais ]]<>'Liste de frais courants'!$A$20,Tableau1[[#This Row],[Type de frais ]]<>'Liste de frais courants'!$A$33,Tableau1[[#This Row],[Type de frais ]]<>'Liste de frais courants'!$A$37,Tableau1[[#This Row],[Type de frais ]]<>'Liste de frais courants'!$A$39,Tableau1[[#This Row],[Type de frais ]]<>'Liste de frais courants'!$A$48),Tableau1[[#This Row],[Montant net payé]],0)","v":0},{"$f":"IF(AND(Tableau1[[#This Row],[Type de frais ]]<>'Liste de frais courants'!$A$48,Tableau1[[#This Row],[Type de frais ]]<>'Liste de frais courants'!$A$18,Tableau1[[#This Row],[Type de frais ]]<>'Liste de frais courants'!$A$20,Tableau1[[#This Row],[Type de frais ]]<>'Liste de frais courants'!$A$32),Tableau1[[#This Row],[Montant net payé]],0)+IF(Tableau1[[#This Row],[Type de frais ]]='Liste de frais courants'!$A$32,MIN(Tableau1[[#This Row],[Montant net payé]],200),0)","v":0}]
[null,null,null,null,null,null,null,{"$f":"Tableau1[[#This Row],[Compagnie 1]]+Tableau1[[#This Row],[Compagnie 2]]","v":0},{"$f":"Tableau1[[#This Row],[Montant total]]-Tableau1[[#This Row],[Total]]","v":0},{"$f":"IF(AND(Tableau1[[#This Row],[Type de frais ]]<>'Liste de frais courants'!$A$15,Tableau1[[#This Row],[Type de frais ]]<>'Liste de frais courants'!$A$18,Tableau1[[#This Row],[Type de frais ]]<>'Liste de frais courants'!$A$20,Tableau1[[#This Row],[Type de frais ]]<>'Liste de frais courants'!$A$33,Tableau1[[#This Row],[Type de frais ]]<>'Liste de frais courants'!$A$37,Tableau1[[#This Row],[Type de frais ]]<>'Liste de frais courants'!$A$39,Tableau1[[#This Row],[Type de frais ]]<>'Liste de frais courants'!$A$48),Tableau1[[#This Row],[Montant net payé]],0)","v":0},{"$f":"IF(AND(Tableau1[[#This Row],[Type de frais ]]<>'Liste de frais courants'!$A$48,Tableau1[[#This Row],[Type de frais ]]<>'Liste de frais courants'!$A$18,Tableau1[[#This Row],[Type de frais ]]<>'Liste de frais courants'!$A$20,Tableau1[[#This Row],[Type de frais ]]<>'Liste de frais courants'!$A$32),Tableau1[[#This Row],[Montant net payé]],0)+IF(Tableau1[[#This Row],[Type de frais ]]='Liste de frais courants'!$A$32,MIN(Tableau1[[#This Row],[Montant net payé]],200),0)","v":0}]
[null,null,null,null,null,null,null,{"$f":"Tableau1[[#This Row],[Compagnie 1]]+Tableau1[[#This Row],[Compagnie 2]]","v":0},{"$f":"Tableau1[[#This Row],[Montant total]]-Tableau1[[#This Row],[Total]]","v":0},{"$f":"IF(AND(Tableau1[[#This Row],[Type de frais ]]<>'Liste de frais courants'!$A$15,Tableau1[[#This Row],[Type de frais ]]<>'Liste de frais courants'!$A$18,Tableau1[[#This Row],[Type de frais ]]<>'Liste de frais courants'!$A$20,Tableau1[[#This Row],[Type de frais ]]<>'Liste de frais courants'!$A$33,Tableau1[[#This Row],[Type de frais ]]<>'Liste de frais courants'!$A$37,Tableau1[[#This Row],[Type de frais ]]<>'Liste de frais courants'!$A$39,Tableau1[[#This Row],[Type de frais ]]<>'Liste de frais courants'!$A$48),Tableau1[[#This Row],[Montant net payé]],0)","v":0},{"$f":"IF(AND(Tableau1[[#This Row],[Type de frais ]]<>'Liste de frais courants'!$A$48,Tableau1[[#This Row],[Type de frais ]]<>'Liste de frais courants'!$A$18,Tableau1[[#This Row],[Type de frais ]]<>'Liste de frais courants'!$A$20,Tableau1[[#This Row],[Type de frais ]]<>'Liste de frais courants'!$A$32),Tableau1[[#This Row],[Montant net payé]],0)+IF(Tableau1[[#This Row],[Type de frais ]]='Liste de frais courants'!$A$32,MIN(Tableau1[[#This Row],[Montant net payé]],200),0)","v":0}]
[null,null,null,null,null,null,null,{"$f":"Tableau1[[#This Row],[Compagnie 1]]+Tableau1[[#This Row],[Compagnie 2]]","v":0},{"$f":"Tableau1[[#This Row],[Montant total]]-Tableau1[[#This Row],[Total]]","v":0},{"$f":"IF(AND(Tableau1[[#This Row],[Type de frais ]]<>'Liste de frais courants'!$A$15,Tableau1[[#This Row],[Type de frais ]]<>'Liste de frais courants'!$A$18,Tableau1[[#This Row],[Type de frais ]]<>'Liste de frais courants'!$A$20,Tableau1[[#This Row],[Type de frais ]]<>'Liste de frais courants'!$A$33,Tableau1[[#This Row],[Type de frais ]]<>'Liste de frais courants'!$A$37,Tableau1[[#This Row],[Type de frais ]]<>'Liste de frais courants'!$A$39,Tableau1[[#This Row],[Type de frais ]]<>'Liste de frais courants'!$A$48),Tableau1[[#This Row],[Montant net payé]],0)","v":0},{"$f":"IF(AND(Tableau1[[#This Row],[Type de frais ]]<>'Liste de frais courants'!$A$48,Tableau1[[#This Row],[Type de frais ]]<>'Liste de frais courants'!$A$18,Tableau1[[#This Row],[Type de frais ]]<>'Liste de frais courants'!$A$20,Tableau1[[#This Row],[Type de frais ]]<>'Liste de frais courants'!$A$32),Tableau1[[#This Row],[Montant net payé]],0)+IF(Tableau1[[#This Row],[Type de frais ]]='Liste de frais courants'!$A$32,MIN(Tableau1[[#This Row],[Montant net payé]],200),0)","v":0}]
[null,null,null,null,null,null,null,{"$f":"Tableau1[[#This Row],[Compagnie 1]]+Tableau1[[#This Row],[Compagnie 2]]","v":0},{"$f":"Tableau1[[#This Row],[Montant total]]-Tableau1[[#This Row],[Total]]","v":0},{"$f":"IF(AND(Tableau1[[#This Row],[Type de frais ]]<>'Liste de frais courants'!$A$15,Tableau1[[#This Row],[Type de frais ]]<>'Liste de frais courants'!$A$18,Tableau1[[#This Row],[Type de frais ]]<>'Liste de frais courants'!$A$20,Tableau1[[#This Row],[Type de frais ]]<>'Liste de frais courants'!$A$33,Tableau1[[#This Row],[Type de frais ]]<>'Liste de frais courants'!$A$37,Tableau1[[#This Row],[Type de frais ]]<>'Liste de frais courants'!$A$39,Tableau1[[#This Row],[Type de frais ]]<>'Liste de frais courants'!$A$48),Tableau1[[#This Row],[Montant net payé]],0)","v":0},{"$f":"IF(AND(Tableau1[[#This Row],[Type de frais ]]<>'Liste de frais courants'!$A$48,Tableau1[[#This Row],[Type de frais ]]<>'Liste de frais courants'!$A$18,Tableau1[[#This Row],[Type de frais ]]<>'Liste de frais courants'!$A$20,Tableau1[[#This Row],[Type de frais ]]<>'Liste de frais courants'!$A$32),Tableau1[[#This Row],[Montant net payé]],0)+IF(Tableau1[[#This Row],[Type de frais ]]='Liste de frais courants'!$A$32,MIN(Tableau1[[#This Row],[Montant net payé]],200),0)","v":0}]
[null,null,null,null,null,null,null,{"$f":"Tableau1[[#This Row],[Compagnie 1]]+Tableau1[[#This Row],[Compagnie 2]]","v":0},{"$f":"Tableau1[[#This Row],[Montant total]]-Tableau1[[#This Row],[Total]]","v":0},{"$f":"IF(AND(Tableau1[[#This Row],[Type de frais ]]<>'Liste de frais courants'!$A$15,Tableau1[[#This Row],[Type de frais ]]<>'Liste de frais courants'!$A$18,Tableau1[[#This Row],[Type de frais ]]<>'Liste de frais courants'!$A$20,Tableau1[[#This Row],[Type de frais ]]<>'Liste de frais courants'!$A$33,Tableau1[[#This Row],[Type de frais ]]<>'Liste de frais courants'!$A$37,Tableau1[[#This Row],[Type de frais ]]<>'Liste de frais courants'!$A$39,Tableau1[[#This Row],[Type de frais ]]<>'Liste de frais courants'!$A$48),Tableau1[[#This Row],[Montant net payé]],0)","v":0},{"$f":"IF(AND(Tableau1[[#This Row],[Type de frais ]]<>'Liste de frais courants'!$A$48,Tableau1[[#This Row],[Type de frais ]]<>'Liste de frais courants'!$A$18,Tableau1[[#This Row],[Type de frais ]]<>'Liste de frais courants'!$A$20,Tableau1[[#This Row],[Type de frais ]]<>'Liste de frais courants'!$A$32),Tableau1[[#This Row],[Montant net payé]],0)+IF(Tableau1[[#This Row],[Type de frais ]]='Liste de frais courants'!$A$32,MIN(Tableau1[[#This Row],[Montant net payé]],200),0)","v":0}]
[null,null,null,null,null,null,null,{"$f":"Tableau1[[#This Row],[Compagnie 1]]+Tableau1[[#This Row],[Compagnie 2]]","v":0},{"$f":"Tableau1[[#This Row],[Montant total]]-Tableau1[[#This Row],[Total]]","v":0},{"$f":"IF(AND(Tableau1[[#This Row],[Type de frais ]]<>'Liste de frais courants'!$A$15,Tableau1[[#This Row],[Type de frais ]]<>'Liste de frais courants'!$A$18,Tableau1[[#This Row],[Type de frais ]]<>'Liste de frais courants'!$A$20,Tableau1[[#This Row],[Type de frais ]]<>'Liste de frais courants'!$A$33,Tableau1[[#This Row],[Type de frais ]]<>'Liste de frais courants'!$A$37,Tableau1[[#This Row],[Type de frais ]]<>'Liste de frais courants'!$A$39,Tableau1[[#This Row],[Type de frais ]]<>'Liste de frais courants'!$A$48),Tableau1[[#This Row],[Montant net payé]],0)","v":0},{"$f":"IF(AND(Tableau1[[#This Row],[Type de frais ]]<>'Liste de frais courants'!$A$48,Tableau1[[#This Row],[Type de frais ]]<>'Liste de frais courants'!$A$18,Tableau1[[#This Row],[Type de frais ]]<>'Liste de frais courants'!$A$20,Tableau1[[#This Row],[Type de frais ]]<>'Liste de frais courants'!$A$32),Tableau1[[#This Row],[Montant net payé]],0)+IF(Tableau1[[#This Row],[Type de frais ]]='Liste de frais courants'!$A$32,MIN(Tableau1[[#This Row],[Montant net payé]],200),0)","v":0}]
[null,null,null,null,null,null,null,{"$f":"Tableau1[[#This Row],[Compagnie 1]]+Tableau1[[#This Row],[Compagnie 2]]","v":0},{"$f":"Tableau1[[#This Row],[Montant total]]-Tableau1[[#This Row],[Total]]","v":0},{"$f":"IF(AND(Tableau1[[#This Row],[Type de frais ]]<>'Liste de frais courants'!$A$15,Tableau1[[#This Row],[Type de frais ]]<>'Liste de frais courants'!$A$18,Tableau1[[#This Row],[Type de frais ]]<>'Liste de frais courants'!$A$20,Tableau1[[#This Row],[Type de frais ]]<>'Liste de frais courants'!$A$33,Tableau1[[#This Row],[Type de frais ]]<>'Liste de frais courants'!$A$37,Tableau1[[#This Row],[Type de frais ]]<>'Liste de frais courants'!$A$39,Tableau1[[#This Row],[Type de frais ]]<>'Liste de frais courants'!$A$48),Tableau1[[#This Row],[Montant net payé]],0)","v":0},{"$f":"IF(AND(Tableau1[[#This Row],[Type de frais ]]<>'Liste de frais courants'!$A$48,Tableau1[[#This Row],[Type de frais ]]<>'Liste de frais courants'!$A$18,Tableau1[[#This Row],[Type de frais ]]<>'Liste de frais courants'!$A$20,Tableau1[[#This Row],[Type de frais ]]<>'Liste de frais courants'!$A$32),Tableau1[[#This Row],[Montant net payé]],0)+IF(Tableau1[[#This Row],[Type de frais ]]='Liste de frais courants'!$A$32,MIN(Tableau1[[#This Row],[Montant net payé]],200),0)","v":0}]
[null,null,null,null,null,null,null,{"$f":"Tableau1[[#This Row],[Compagnie 1]]+Tableau1[[#This Row],[Compagnie 2]]","v":0},{"$f":"Tableau1[[#This Row],[Montant total]]-Tableau1[[#This Row],[Total]]","v":0},{"$f":"IF(AND(Tableau1[[#This Row],[Type de frais ]]<>'Liste de frais courants'!$A$15,Tableau1[[#This Row],[Type de frais ]]<>'Liste de frais courants'!$A$18,Tableau1[[#This Row],[Type de frais ]]<>'Liste de frais courants'!$A$20,Tableau1[[#This Row],[Type de frais ]]<>'Liste de frais courants'!$A$33,Tableau1[[#This Row],[Type de frais ]]<>'Liste de frais courants'!$A$37,Tableau1[[#This Row],[Type de frais ]]<>'Liste de frais courants'!$A$39,Tableau1[[#This Row],[Type de frais ]]<>'Liste de frais courants'!$A$48),Tableau1[[#This Row],[Montant net payé]],0)","v":0},{"$f":"IF(AND(Tableau1[[#This Row],[Type de frais ]]<>'Liste de frais courants'!$A$48,Tableau1[[#This Row],[Type de frais ]]<>'Liste de frais courants'!$A$18,Tableau1[[#This Row],[Type de frais ]]<>'Liste de frais courants'!$A$20,Tableau1[[#This Row],[Type de frais ]]<>'Liste de frais courants'!$A$32),Tableau1[[#This Row],[Montant net payé]],0)+IF(Tableau1[[#This Row],[Type de frais ]]='Liste de frais courants'!$A$32,MIN(Tableau1[[#This Row],[Montant net payé]],200),0)","v":0}]
[null,null,null,null,null,null,null,{"$f":"Tableau1[[#This Row],[Compagnie 1]]+Tableau1[[#This Row],[Compagnie 2]]","v":0},{"$f":"Tableau1[[#This Row],[Montant total]]-Tableau1[[#This Row],[Total]]","v":0},{"$f":"IF(AND(Tableau1[[#This Row],[Type de frais ]]<>'Liste de frais courants'!$A$15,Tableau1[[#This Row],[Type de frais ]]<>'Liste de frais courants'!$A$18,Tableau1[[#This Row],[Type de frais ]]<>'Liste de frais courants'!$A$20,Tableau1[[#This Row],[Type de frais ]]<>'Liste de frais courants'!$A$33,Tableau1[[#This Row],[Type de frais ]]<>'Liste de frais courants'!$A$37,Tableau1[[#This Row],[Type de frais ]]<>'Liste de frais courants'!$A$39,Tableau1[[#This Row],[Type de frais ]]<>'Liste de frais courants'!$A$48),Tableau1[[#This Row],[Montant net payé]],0)","v":0},{"$f":"IF(AND(Tableau1[[#This Row],[Type de frais ]]<>'Liste de frais courants'!$A$48,Tableau1[[#This Row],[Type de frais ]]<>'Liste de frais courants'!$A$18,Tableau1[[#This Row],[Type de frais ]]<>'Liste de frais courants'!$A$20,Tableau1[[#This Row],[Type de frais ]]<>'Liste de frais courants'!$A$32),Tableau1[[#This Row],[Montant net payé]],0)+IF(Tableau1[[#This Row],[Type de frais ]]='Liste de frais courants'!$A$32,MIN(Tableau1[[#This Row],[Montant net payé]],200),0)","v":0}]
[null,null,null,null,null,null,null,{"$f":"Tableau1[[#This Row],[Compagnie 1]]+Tableau1[[#This Row],[Compagnie 2]]","v":0},{"$f":"Tableau1[[#This Row],[Montant total]]-Tableau1[[#This Row],[Total]]","v":0},{"$f":"IF(AND(Tableau1[[#This Row],[Type de frais ]]<>'Liste de frais courants'!$A$15,Tableau1[[#This Row],[Type de frais ]]<>'Liste de frais courants'!$A$18,Tableau1[[#This Row],[Type de frais ]]<>'Liste de frais courants'!$A$20,Tableau1[[#This Row],[Type de frais ]]<>'Liste de frais courants'!$A$33,Tableau1[[#This Row],[Type de frais ]]<>'Liste de frais courants'!$A$37,Tableau1[[#This Row],[Type de frais ]]<>'Liste de frais courants'!$A$39,Tableau1[[#This Row],[Type de frais ]]<>'Liste de frais courants'!$A$48),Tableau1[[#This Row],[Montant net payé]],0)","v":0},{"$f":"IF(AND(Tableau1[[#This Row],[Type de frais ]]<>'Liste de frais courants'!$A$48,Tableau1[[#This Row],[Type de frais ]]<>'Liste de frais courants'!$A$18,Tableau1[[#This Row],[Type de frais ]]<>'Liste de frais courants'!$A$20,Tableau1[[#This Row],[Type de frais ]]<>'Liste de frais courants'!$A$32),Tableau1[[#This Row],[Montant net payé]],0)+IF(Tableau1[[#This Row],[Type de frais ]]='Liste de frais courants'!$A$32,MIN(Tableau1[[#This Row],[Montant net payé]],200),0)","v":0}]
[null,null,null,null,null,null,null,{"$f":"Tableau1[[#This Row],[Compagnie 1]]+Tableau1[[#This Row],[Compagnie 2]]","v":0},{"$f":"Tableau1[[#This Row],[Montant total]]-Tableau1[[#This Row],[Total]]","v":0},{"$f":"IF(AND(Tableau1[[#This Row],[Type de frais ]]<>'Liste de frais courants'!$A$15,Tableau1[[#This Row],[Type de frais ]]<>'Liste de frais courants'!$A$18,Tableau1[[#This Row],[Type de frais ]]<>'Liste de frais courants'!$A$20,Tableau1[[#This Row],[Type de frais ]]<>'Liste de frais courants'!$A$33,Tableau1[[#This Row],[Type de frais ]]<>'Liste de frais courants'!$A$37,Tableau1[[#This Row],[Type de frais ]]<>'Liste de frais courants'!$A$39,Tableau1[[#This Row],[Type de frais ]]<>'Liste de frais courants'!$A$48),Tableau1[[#This Row],[Montant net payé]],0)","v":0},{"$f":"IF(AND(Tableau1[[#This Row],[Type de frais ]]<>'Liste de frais courants'!$A$48,Tableau1[[#This Row],[Type de frais ]]<>'Liste de frais courants'!$A$18,Tableau1[[#This Row],[Type de frais ]]<>'Liste de frais courants'!$A$20,Tableau1[[#This Row],[Type de frais ]]<>'Liste de frais courants'!$A$32),Tableau1[[#This Row],[Montant net payé]],0)+IF(Tableau1[[#This Row],[Type de frais ]]='Liste de frais courants'!$A$32,MIN(Tableau1[[#This Row],[Montant net payé]],200),0)","v":0}]
[null,null,null,null,null,null,null,{"$f":"Tableau1[[#This Row],[Compagnie 1]]+Tableau1[[#This Row],[Compagnie 2]]","v":0},{"$f":"Tableau1[[#This Row],[Montant total]]-Tableau1[[#This Row],[Total]]","v":0},{"$f":"IF(AND(Tableau1[[#This Row],[Type de frais ]]<>'Liste de frais courants'!$A$15,Tableau1[[#This Row],[Type de frais ]]<>'Liste de frais courants'!$A$18,Tableau1[[#This Row],[Type de frais ]]<>'Liste de frais courants'!$A$20,Tableau1[[#This Row],[Type de frais ]]<>'Liste de frais courants'!$A$33,Tableau1[[#This Row],[Type de frais ]]<>'Liste de frais courants'!$A$37,Tableau1[[#This Row],[Type de frais ]]<>'Liste de frais courants'!$A$39,Tableau1[[#This Row],[Type de frais ]]<>'Liste de frais courants'!$A$48),Tableau1[[#This Row],[Montant net payé]],0)","v":0},{"$f":"IF(AND(Tableau1[[#This Row],[Type de frais ]]<>'Liste de frais courants'!$A$48,Tableau1[[#This Row],[Type de frais ]]<>'Liste de frais courants'!$A$18,Tableau1[[#This Row],[Type de frais ]]<>'Liste de frais courants'!$A$20,Tableau1[[#This Row],[Type de frais ]]<>'Liste de frais courants'!$A$32),Tableau1[[#This Row],[Montant net payé]],0)+IF(Tableau1[[#This Row],[Type de frais ]]='Liste de frais courants'!$A$32,MIN(Tableau1[[#This Row],[Montant net payé]],200),0)","v":0}]
[null,null,null,null,null,null,null,{"$f":"Tableau1[[#This Row],[Compagnie 1]]+Tableau1[[#This Row],[Compagnie 2]]","v":0},{"$f":"Tableau1[[#This Row],[Montant total]]-Tableau1[[#This Row],[Total]]","v":0},{"$f":"IF(AND(Tableau1[[#This Row],[Type de frais ]]<>'Liste de frais courants'!$A$15,Tableau1[[#This Row],[Type de frais ]]<>'Liste de frais courants'!$A$18,Tableau1[[#This Row],[Type de frais ]]<>'Liste de frais courants'!$A$20,Tableau1[[#This Row],[Type de frais ]]<>'Liste de frais courants'!$A$33,Tableau1[[#This Row],[Type de frais ]]<>'Liste de frais courants'!$A$37,Tableau1[[#This Row],[Type de frais ]]<>'Liste de frais courants'!$A$39,Tableau1[[#This Row],[Type de frais ]]<>'Liste de frais courants'!$A$48),Tableau1[[#This Row],[Montant net payé]],0)","v":0},{"$f":"IF(AND(Tableau1[[#This Row],[Type de frais ]]<>'Liste de frais courants'!$A$48,Tableau1[[#This Row],[Type de frais ]]<>'Liste de frais courants'!$A$18,Tableau1[[#This Row],[Type de frais ]]<>'Liste de frais courants'!$A$20,Tableau1[[#This Row],[Type de frais ]]<>'Liste de frais courants'!$A$32),Tableau1[[#This Row],[Montant net payé]],0)+IF(Tableau1[[#This Row],[Type de frais ]]='Liste de frais courants'!$A$32,MIN(Tableau1[[#This Row],[Montant net payé]],200),0)","v":0}]
[null,null,null,null,null,null,null,{"$f":"Tableau1[[#This Row],[Compagnie 1]]+Tableau1[[#This Row],[Compagnie 2]]","v":0},{"$f":"Tableau1[[#This Row],[Montant total]]-Tableau1[[#This Row],[Total]]","v":0},{"$f":"IF(AND(Tableau1[[#This Row],[Type de frais ]]<>'Liste de frais courants'!$A$15,Tableau1[[#This Row],[Type de frais ]]<>'Liste de frais courants'!$A$18,Tableau1[[#This Row],[Type de frais ]]<>'Liste de frais courants'!$A$20,Tableau1[[#This Row],[Type de frais ]]<>'Liste de frais courants'!$A$33,Tableau1[[#This Row],[Type de frais ]]<>'Liste de frais courants'!$A$37,Tableau1[[#This Row],[Type de frais ]]<>'Liste de frais courants'!$A$39,Tableau1[[#This Row],[Type de frais ]]<>'Liste de frais courants'!$A$48),Tableau1[[#This Row],[Montant net payé]],0)","v":0},{"$f":"IF(AND(Tableau1[[#This Row],[Type de frais ]]<>'Liste de frais courants'!$A$48,Tableau1[[#This Row],[Type de frais ]]<>'Liste de frais courants'!$A$18,Tableau1[[#This Row],[Type de frais ]]<>'Liste de frais courants'!$A$20,Tableau1[[#This Row],[Type de frais ]]<>'Liste de frais courants'!$A$32),Tableau1[[#This Row],[Montant net payé]],0)+IF(Tableau1[[#This Row],[Type de frais ]]='Liste de frais courants'!$A$32,MIN(Tableau1[[#This Row],[Montant net payé]],200),0)","v":0}]
[null,null,null,null,null,null,null,{"$f":"Tableau1[[#This Row],[Compagnie 1]]+Tableau1[[#This Row],[Compagnie 2]]","v":0},{"$f":"Tableau1[[#This Row],[Montant total]]-Tableau1[[#This Row],[Total]]","v":0},{"$f":"IF(AND(Tableau1[[#This Row],[Type de frais ]]<>'Liste de frais courants'!$A$15,Tableau1[[#This Row],[Type de frais ]]<>'Liste de frais courants'!$A$18,Tableau1[[#This Row],[Type de frais ]]<>'Liste de frais courants'!$A$20,Tableau1[[#This Row],[Type de frais ]]<>'Liste de frais courants'!$A$33,Tableau1[[#This Row],[Type de frais ]]<>'Liste de frais courants'!$A$37,Tableau1[[#This Row],[Type de frais ]]<>'Liste de frais courants'!$A$39,Tableau1[[#This Row],[Type de frais ]]<>'Liste de frais courants'!$A$48),Tableau1[[#This Row],[Montant net payé]],0)","v":0},{"$f":"IF(AND(Tableau1[[#This Row],[Type de frais ]]<>'Liste de frais courants'!$A$48,Tableau1[[#This Row],[Type de frais ]]<>'Liste de frais courants'!$A$18,Tableau1[[#This Row],[Type de frais ]]<>'Liste de frais courants'!$A$20,Tableau1[[#This Row],[Type de frais ]]<>'Liste de frais courants'!$A$32),Tableau1[[#This Row],[Montant net payé]],0)+IF(Tableau1[[#This Row],[Type de frais ]]='Liste de frais courants'!$A$32,MIN(Tableau1[[#This Row],[Montant net payé]],200),0)","v":0}]
[null,null,null,"Total : ",{"$f":"SUBTOTAL(109,Tableau1[Montant total])","v":0},{"$f":"SUBTOTAL(109,Tableau1[Compagnie 1])","v":0},{"$f":"SUBTOTAL(109,Tableau1[Compagnie 2])","v":0},{"$f":"SUBTOTAL(109,Tableau1[Total])","v":0},{"$f":"SUBTOTAL(109,Tableau1[Montant net payé])","v":0},{"$f":"SUBTOTAL(109,Tableau1[Fédéral])","v":0},{"$f":"SUBTOTAL(109,Tableau1[Québec])","v":0}]

{"sheet":"Frais médicaux (3)","index":2,"n_rows":27,"n_cols":12,"rows_kept":27,"cut":false,"hidden":true,"merged":[[0,1,0,3],[5,3,5,4]]}
[null,null,null,null,null,null,null,2024]
[null,"Tableau des frais médicaux"]
[]
[]
[]
[null,null,null,"Montants admissibles"]
[null," ","Nom","Fédéral","Québec"]
[null,"Parent 1","iopi",{"$f":"SUMIF('Frais médicaux (3)'!$C$22:$C$22,C8,$J$22:$J$25)","v":0},{"$f":"SUMIF('Frais médicaux (3)'!$C$22:$C$22,C8,$K$22:$K$25)","v":0}]
[null,"Parent 2",null,{"$f":"SUMIF('Frais médicaux (3)'!$C$22:$C$22,C9,$J$22:$J$25)","v":0},{"$f":"SUMIF('Frais médicaux (3)'!$C$22:$C$22,C9,$K$22:$K$25)","v":0}]
[null,"Enfant 1",null,{"$f":"SUMIF('Frais médicaux (3)'!$C$22:$C$22,C10,$J$22:$J$25)","v":0},{"$f":"SUMIF('Frais médicaux (3)'!$C$22:$C$22,C10,$K$22:$K$25)","v":0}]
[null,"Enfant 2",null,{"$f":"SUMIF('Frais médicaux (3)'!$C$22:$C$22,C11,$J$22:$J$25)","v":0},{"$f":"SUMIF('Frais médicaux (3)'!$C$22:$C$22,C11,$K$22:$K$25)","v":0}]
[null,"Enfant 3",null,{"$f":"SUMIF('Frais médicaux (3)'!$C$22:$C$22,C12,$J$22:$J$25)","v":0},{"$f":"SUMIF('Frais médicaux (3)'!$C$22:$C$22,C12,$K$22:$K$25)","v":0}]
[null,"Enfant 4",null,{"$f":"SUMIF('Frais médicaux (3)'!$C$22:$C$22,C13,$J$22:$J$25)","v":0},{"$f":"SUMIF('Frais médicaux (3)'!$C$22:$C$22,C13,$K$22:$K$25)","v":0}]
[null,"Enfant 5",null,{"$f":"SUMIF('Frais médicaux (3)'!$C$22:$C$22,C14,$J$22:$J$25)","v":0},{"$f":"SUMIF('Frais médicaux (3)'!$C$22:$C$22,C14,$K$22:$K$25)","v":0}]
[null,"Total",null,{"$f":"SUBTOTAL(109,Tableau59[Fédéral])","v":0},{"$f":"SUBTOTAL(109,Tableau59[Québec])","v":0}]
[]
[null,"INSTRUCTION : Dans le tableau ci-dessous, appuyez simultanément sur les touches Ctrl + p pour insérer une nouvelle ligne."]
[]
[]
[null,null,null,null,null,"Montant remboursé par assurance"]
[null,"Date","Nom","Type de frais médical","Montant soumis","Compagnie 1","Compagnie 2","Total","Montant admissible","Fédéral","Québec","Commentaire"]
[null,null,"iopi","Appareil auditif",45]
[]
[]
[null,null,null,null,null,null,null,{"$f":"'Frais médicaux (3)'!$F25+'Frais médicaux (3)'!$G25","v":0},{"$f":"'Frais médicaux (3)'!$E25-'Frais médicaux (3)'!$H25","v":0},{"$f":"IF(AND('Frais médicaux (3)'!$D25<>'Liste de frais courants'!$A$3,'Frais médicaux (3)'!$D25<>'Liste de frais courants'!#REF!,'Frais médicaux (3)'!$D25<>'Liste de frais courants'!$A$15,'Frais médicaux (3)'!$D25<>'Liste de frais courants'!$A$18,'Frais médicaux (3)'!$D25<>'Liste de frais courants'!$A$20,'Frais médicaux (3)'!$D25<>'Liste de frais courants'!$A$33,'Frais médicaux (3)'!$D25<>'Liste de frais courants'!$A$39),'Frais médicaux (3)'!$I25,0)","v":{"$error":"#REF!"}},{"$f":"IF(AND('Frais médicaux (3)'!$D25<>'Liste de frais courants'!#REF!,'Frais médicaux (3)'!$D25<>'Liste de frais courants'!$A$18,'Frais médicaux (3)'!$D25<>'Liste de frais courants'!$A$20),'Frais médicaux (3)'!$I25,0)","v":{"$error":"#REF!"}}]
[]
[null,null,null,null,null,null,null,{"$f":"'Frais médicaux (3)'!$F27+'Frais médicaux (3)'!$G27","v":0},{"$f":"'Frais médicaux (3)'!$E27-'Frais médicaux (3)'!$H27","v":0},{"$f":"IF(AND('Frais médicaux (3)'!$D27<>'Liste de frais courants'!$A$3,'Frais médicaux (3)'!$D27<>'Liste de frais courants'!#REF!,'Frais médicaux (3)'!$D27<>'Liste de frais courants'!$A$15,'Frais médicaux (3)'!$D27<>'Liste de frais courants'!$A$18,'Frais médicaux (3)'!$D27<>'Liste de frais courants'!$A$20,'Frais médicaux (3)'!$D27<>'Liste de frais courants'!$A$33,'Frais médicaux (3)'!$D27<>'Liste de frais courants'!$A$39),'Frais médicaux (3)'!$I27,0)","v":{"$error":"#REF!"}},{"$f":"IF(AND('Frais médicaux (3)'!$D27<>'Liste de frais courants'!#REF!,'Frais médicaux (3)'!$D27<>'Liste de frais courants'!$A$18,'Frais médicaux (3)'!$D27<>'Liste de frais courants'!$A$20),'Frais médicaux (3)'!$I27,0)","v":{"$error":"#REF!"}}]

{"sheet":"Frais médicaux (2)","index":3,"n_rows":200,"n_cols":11,"rows_kept":200,"cut":false,"hidden":true,"merged":[[4,2,4,3]]}
["Tableau des frais médicaux"]
["Impôt 2024"]
[]
[]
[null,null,"Montants admissibles"]
[" ","Nom","Fédéral","Québec"]
["Parent 1",null,{"$f":"SUMIF(Tableau15[Nom],B7,$I$18:$I$199)","v":0},{"$f":"SUMIF(Tableau15[Nom],B7,$J$18:$J$199)","v":0}]
["Parent 2",null,{"$f":"SUMIF(Tableau15[Nom],B8,$I$18:$I$199)","v":0},{"$f":"SUMIF(Tableau15[Nom],B8,$J$18:$J$199)","v":0}]
["Enfant 1",null,{"$f":"SUMIF(Tableau15[Nom],B9,$I$18:$I$199)","v":0},{"$f":"SUMIF(Tableau15[Nom],B9,$J$18:$J$199)","v":0}]
["Enfant 2",null,{"$f":"SUMIF(Tableau15[Nom],B10,$I$18:$I$199)","v":0},{"$f":"SUMIF(Tableau15[Nom],B10,$J$18:$J$199)","v":0}]
["Enfant 3",null,{"$f":"SUMIF(Tableau15[Nom],B11,$I$18:$I$199)","v":0},{"$f":"SUMIF(Tableau15[Nom],B11,$J$18:$J$199)","v":0}]
["Enfant 4",null,{"$f":"SUMIF(Tableau15[Nom],B12,$I$18:$I$199)","v":0},{"$f":"SUMIF(Tableau15[Nom],B12,$J$18:$J$199)","v":0}]
["Enfant 5",null,{"$f":"SUMIF(Tableau15[Nom],B13,$I$18:$I$199)","v":0},{"$f":"SUMIF(Tableau15[Nom],B13,$J$18:$J$199)","v":0}]
["Total",null,{"$f":"SUBTOTAL(109,Tableau57[Fédéral])","v":0},{"$f":"SUBTOTAL(109,Tableau57[Québec])","v":0}]
[]
[null,null,null,null,"Montant remboursé par assurance"]
["Date","Nom","Type de frais médical","Montant soumis","Compagnie 1","Compagnie 2","Total","Montant admissible","Fédéral","Québec","Commentaire"]
[null,null,null,null,null,null,{"$f":"Tableau15[[#This Row],[Compagnie 1]]+Tableau15[[#This Row],[Compagnie 2]]","v":0},{"$f":"Tableau15[[#This Row],[Montant soumis]]-Tableau15[[#This Row],[Total]]","v":0},0,0]
[null,null,null,null,null,null,{"$f":"Tableau15[[#This Row],[Compagnie 1]]+Tableau15[[#This Row],[Compagnie 2]]","v":0},{"$f":"Tableau15[[#This Row],[Montant soumis]]-Tableau15[[#This Row],[Total]]","v":0},0,0]
[null,null,null,null,null,null,{"$f":"Tableau15[[#This Row],[Compagnie 1]]+Tableau15[[#This Row],[Compagnie 2]]","v":0},{"$f":"Tableau15[[#This Row],[Montant soumis]]-Tableau15[[#This Row],[Total]]","v":0},0,0]
[null,null,null,null,null,null,{"$f":"Tableau15[[#This Row],[Compagnie 1]]+Tableau15[[#This Row],[Compagnie 2]]","v":0},{"$f":"Tableau15[[#This Row],[Montant soumis]]-Tableau15[[#This Row],[Total]]","v":0},0,0]
[null,null,null,null,null,null,{"$f":"Tableau15[[#This Row],[Compagnie 1]]+Tableau15[[#This Row],[Compagnie 2]]","v":0},{"$f":"Tableau15[[#This Row],[Montant soumis]]-Tableau15[[#This Row],[Total]]","v":0},0,0]
[null,null,null,null,null,null,{"$f":"Tableau15[[#This Row],[Compagnie 1]]+Tableau15[[#This Row],[Compagnie 2]]","v":0},{"$f":"Tableau15[[#This Row],[Montant soumis]]-Tableau15[[#This Row],[Total]]","v":0},0,0]
[null,null,null,null,null,null,{"$f":"Tableau15[[#This Row],[Compagnie 1]]+Tableau15[[#This Row],[Compagnie 2]]","v":0},{"$f":"Tableau15[[#This Row],[Montant soumis]]-Tableau15[[#This Row],[Total]]","v":0},0,0]
[null,null,null,null,null,null,{"$f":"Tableau15[[#This Row],[Compagnie 1]]+Tableau15[[#This Row],[Compagnie 2]]","v":0},{"$f":"Tableau15[[#This Row],[Montant soumis]]-Tableau15[[#This Row],[Total]]","v":0},0,0]
[null,null,null,null,null,null,{"$f":"Tableau15[[#This Row],[Compagnie 1]]+Tableau15[[#This Row],[Compagnie 2]]","v":0},{"$f":"Tableau15[[#This Row],[Montant soumis]]-Tableau15[[#This Row],[Total]]","v":0},0,0]
[null,null,null,null,null,null,{"$f":"Tableau15[[#This Row],[Compagnie 1]]+Tableau15[[#This Row],[Compagnie 2]]","v":0},{"$f":"Tableau15[[#This Row],[Montant soumis]]-Tableau15[[#This Row],[Total]]","v":0},0,0]
[null,null,null,null,null,null,{"$f":"Tableau15[[#This Row],[Compagnie 1]]+Tableau15[[#This Row],[Compagnie 2]]","v":0},{"$f":"Tableau15[[#This Row],[Montant soumis]]-Tableau15[[#This Row],[Total]]","v":0},0,0]
[null,null,null,null,null,null,{"$f":"Tableau15[[#This Row],[Compagnie 1]]+Tableau15[[#This Row],[Compagnie 2]]","v":0},{"$f":"Tableau15[[#This Row],[Montant soumis]]-Tableau15[[#This Row],[Total]]","v":0},0,0]
[null,null,null,null,null,null,{"$f":"Tableau15[[#This Row],[Compagnie 1]]+Tableau15[[#This Row],[Compagnie 2]]","v":0},{"$f":"Tableau15[[#This Row],[Montant soumis]]-Tableau15[[#This Row],[Total]]","v":0},0,0]
[null,null,null,null,null,null,{"$f":"Tableau15[[#This Row],[Compagnie 1]]+Tableau15[[#This Row],[Compagnie 2]]","v":0},{"$f":"Tableau15[[#This Row],[Montant soumis]]-Tableau15[[#This Row],[Total]]","v":0},0,0]
[null,null,null,null,null,null,{"$f":"Tableau15[[#This Row],[Compagnie 1]]+Tableau15[[#This Row],[Compagnie 2]]","v":0},{"$f":"Tableau15[[#This Row],[Montant soumis]]-Tableau15[[#This Row],[Total]]","v":0},0,0]
[null,null,null,null,null,null,{"$f":"Tableau15[[#This Row],[Compagnie 1]]+Tableau15[[#This Row],[Compagnie 2]]","v":0},{"$f":"Tableau15[[#This Row],[Montant soumis]]-Tableau15[[#This Row],[Total]]","v":0},0,0]
[null,null,null,null,null,null,{"$f":"Tableau15[[#This Row],[Compagnie 1]]+Tableau15[[#This Row],[Compagnie 2]]","v":0},{"$f":"Tableau15[[#This Row],[Montant soumis]]-Tableau15[[#This Row],[Total]]","v":0},0,0]
[null,null,null,null,null,null,{"$f":"Tableau15[[#This Row],[Compagnie 1]]+Tableau15[[#This Row],[Compagnie 2]]","v":0},{"$f":"Tableau15[[#This Row],[Montant soumis]]-Tableau15[[#This Row],[Total]]","v":0},0,0]
[null,null,null,null,null,null,{"$f":"Tableau15[[#This Row],[Compagnie 1]]+Tableau15[[#This Row],[Compagnie 2]]","v":0},{"$f":"Tableau15[[#This Row],[Montant soumis]]-Tableau15[[#This Row],[Total]]","v":0},0,0]
[null,null,null,null,null,null,{"$f":"Tableau15[[#This Row],[Compagnie 1]]+Tableau15[[#This Row],[Compagnie 2]]","v":0},{"$f":"Tableau15[[#This Row],[Montant soumis]]-Tableau15[[#This Row],[Total]]","v":0},0,0]
[null,null,null,null,null,null,{"$f":"Tableau15[[#This Row],[Compagnie 1]]+Tableau15[[#This Row],[Compagnie 2]]","v":0},{"$f":"Tableau15[[#This Row],[Montant soumis]]-Tableau15[[#This Row],[Total]]","v":0},0,0]
[null,null,null,null,null,null,{"$f":"Tableau15[[#This Row],[Compagnie 1]]+Tableau15[[#This Row],[Compagnie 2]]","v":0},{"$f":"Tableau15[[#This Row],[Montant soumis]]-Tableau15[[#This Row],[Total]]","v":0},0,0]
[null,null,null,null,null,null,{"$f":"Tableau15[[#This Row],[Compagnie 1]]+Tableau15[[#This Row],[Compagnie 2]]","v":0},{"$f":"Tableau15[[#This Row],[Montant soumis]]-Tableau15[[#This Row],[Total]]","v":0},0,0]
[null,null,null,null,null,null,{"$f":"Tableau15[[#This Row],[Compagnie 1]]+Tableau15[[#This Row],[Compagnie 2]]","v":0},{"$f":"Tableau15[[#This Row],[Montant soumis]]-Tableau15[[#This Row],[Total]]","v":0},0,0]
[null,null,null,null,null,null,{"$f":"Tableau15[[#This Row],[Compagnie 1]]+Tableau15[[#This Row],[Compagnie 2]]","v":0},{"$f":"Tableau15[[#This Row],[Montant soumis]]-Tableau15[[#This Row],[Total]]","v":0},0,0]
[null,null,null,null,null,null,{"$f":"Tableau15[[#This Row],[Compagnie 1]]+Tableau15[[#This Row],[Compagnie 2]]","v":0},{"$f":"Tableau15[[#This Row],[Montant soumis]]-Tableau15[[#This Row],[Total]]","v":0},0,0]
[null,null,null,null,null,null,{"$f":"Tableau15[[#This Row],[Compagnie 1]]+Tableau15[[#This Row],[Compagnie 2]]","v":0},{"$f":"Tableau15[[#This Row],[Montant soumis]]-Tableau15[[#This Row],[Total]]","v":0},0,0]
[null,null,null,null,null,null,{"$f":"Tableau15[[#This Row],[Compagnie 1]]+Tableau15[[#This Row],[Compagnie 2]]","v":0},{"$f":"Tableau15[[#This Row],[Montant soumis]]-Tableau15[[#This Row],[Total]]","v":0},0,0]
[null,null,null,null,null,null,{"$f":"Tableau15[[#This Row],[Compagnie 1]]+Tableau15[[#This Row],[Compagnie 2]]","v":0},{"$f":"Tableau15[[#This Row],[Montant soumis]]-Tableau15[[#This Row],[Total]]","v":0},0,0]
[null,null,null,null,null,null,{"$f":"Tableau15[[#This Row],[Compagnie 1]]+Tableau15[[#This Row],[Compagnie 2]]","v":0},{"$f":"Tableau15[[#This Row],[Montant soumis]]-Tableau15[[#This Row],[Total]]","v":0},0,0]
[null,null,null,null,null,null,{"$f":"Tableau15[[#This Row],[Compagnie 1]]+Tableau15[[#This Row],[Compagnie 2]]","v":0},{"$f":"Tableau15[[#This Row],[Montant soumis]]-Tableau15[[#This Row],[Total]]","v":0},0,0]
[null,null,null,null,null,null,{"$f":"Tableau15[[#This Row],[Compagnie 1]]+Tableau15[[#This Row],[Compagnie 2]]","v":0},{"$f":"Tableau15[[#This Row],[Montant soumis]]-Tableau15[[#This Row],[Total]]","v":0},0,0]
[null,null,null,null,null,null,{"$f":"Tableau15[[#This Row],[Compagnie 1]]+Tableau15[[#This Row],[Compagnie 2]]","v":0},{"$f":"Tableau15[[#This Row],[Montant soumis]]-Tableau15[[#This Row],[Total]]","v":0},0,0]
[null,null,null,null,null,null,{"$f":"Tableau15[[#This Row],[Compagnie 1]]+Tableau15[[#This Row],[Compagnie 2]]","v":0},{"$f":"Tableau15[[#This Row],[Montant soumis]]-Tableau15[[#This Row],[Total]]","v":0},0,0]
[null,null,null,null,null,null,{"$f":"Tableau15[[#This Row],[Compagnie 1]]+Tableau15[[#This Row],[Compagnie 2]]","v":0},{"$f":"Tableau15[[#This Row],[Montant soumis]]-Tableau15[[#This Row],[Total]]","v":0},0,0]
[null,null,null,null,null,null,{"$f":"Tableau15[[#This Row],[Compagnie 1]]+Tableau15[[#This Row],[Compagnie 2]]","v":0},{"$f":"Tableau15[[#This Row],[Montant soumis]]-Tableau15[[#This Row],[Total]]","v":0},0,0]
[null,null,null,null,null,null,{"$f":"Tableau15[[#This Row],[Compagnie 1]]+Tableau15[[#This Row],[Compagnie 2]]","v":0},{"$f":"Tableau15[[#This Row],[Montant soumis]]-Tableau15[[#This Row],[Total]]","v":0},0,0]
[null,null,null,null,null,null,{"$f":"Tableau15[[#This Row],[Compagnie 1]]+Tableau15[[#This Row],[Compagnie 2]]","v":0},{"$f":"Tableau15[[#This Row],[Montant soumis]]-Tableau15[[#This Row],[Total]]","v":0},0,0]
[null,null,null,null,null,null,{"$f":"Tableau15[[#This Row],[Compagnie 1]]+Tableau15[[#This Row],[Compagnie 2]]","v":0},{"$f":"Tableau15[[#This Row],[Montant soumis]]-Tableau15[[#This Row],[Total]]","v":0},0,0]
[null,null,null,null,null,null,{"$f":"Tableau15[[#This Row],[Compagnie 1]]+Tableau15[[#This Row],[Compagnie 2]]","v":0},{"$f":"Tableau15[[#This Row],[Montant soumis]]-Tableau15[[#This Row],[Total]]","v":0},0,0]
[null,null,null,null,null,null,{"$f":"Tableau15[[#This Row],[Compagnie 1]]+Tableau15[[#This Row],[Compagnie 2]]","v":0},{"$f":"Tableau15[[#This Row],[Montant soumis]]-Tableau15[[#This Row],[Total]]","v":0},0,0]
[null,null,null,null,null,null,{"$f":"Tableau15[[#This Row],[Compagnie 1]]+Tableau15[[#This Row],[Compagnie 2]]","v":0},{"$f":"Tableau15[[#This Row],[Montant soumis]]-Tableau15[[#This Row],[Total]]","v":0},0,0]
[null,null,null,null,null,null,{"$f":"Tableau15[[#This Row],[Compagnie 1]]+Tableau15[[#This Row],[Compagnie 2]]","v":0},{"$f":"Tableau15[[#This Row],[Montant soumis]]-Tableau15[[#This Row],[Total]]","v":0},0,0]
[null,null,null,null,null,null,{"$f":"Tableau15[[#This Row],[Compagnie 1]]+Tableau15[[#This Row],[Compagnie 2]]","v":0},{"$f":"Tableau15[[#This Row],[Montant soumis]]-Tableau15[[#This Row],[Total]]","v":0},0,0]
[null,null,null,null,null,null,{"$f":"Tableau15[[#This Row],[Compagnie 1]]+Tableau15[[#This Row],[Compagnie 2]]","v":0},{"$f":"Tableau15[[#This Row],[Montant soumis]]-Tableau15[[#This Row],[Total]]","v":0},0,0]
[null,null,null,null,null,null,{"$f":"Tableau15[[#This Row],[Compagnie 1]]+Tableau15[[#This Row],[Compagnie 2]]","v":0},{"$f":"Tableau15[[#This Row],[Montant soumis]]-Tableau15[[#This Row],[Total]]","v":0},0,0]
[null,null,null,null,null,null,{"$f":"Tableau15[[#This Row],[Compagnie 1]]+Tableau15[[#This Row],[Compagnie 2]]","v":0},{"$f":"Tableau15[[#This Row],[Montant soumis]]-Tableau15[[#This Row],[Total]]","v":0},0,0]
[null,null,null,null,null,null,{"$f":"Tableau15[[#This Row],[Compagnie 1]]+Tableau15[[#This Row],[Compagnie 2]]","v":0},{"$f":"Tableau15[[#This Row],[Montant soumis]]-Tableau15[[#This Row],[Total]]","v":0},0,0]
[null,null,null,null,null,null,{"$f":"Tableau15[[#This Row],[Compagnie 1]]+Tableau15[[#This Row],[Compagnie 2]]","v":0},{"$f":"Tableau15[[#This Row],[Montant soumis]]-Tableau15[[#This Row],[Total]]","v":0},0,0]
[null,null,null,null,null,null,{"$f":"Tableau15[[#This Row],[Compagnie 1]]+Tableau15[[#This Row],[Compagnie 2]]","v":0},{"$f":"Tableau15[[#This Row],[Montant soumis]]-Tableau15[[#This Row],[Total]]","v":0},0,0]
[null,null,null,null,null,null,{"$f":"Tableau15[[#This Row],[Compagnie 1]]+Tableau15[[#This Row],[Compagnie 2]]","v":0},{"$f":"Tableau15[[#This Row],[Montant soumis]]-Tableau15[[#This Row],[Total]]","v":0},0,0]
[null,null,null,null,null,null,{"$f":"Tableau15[[#This Row],[Compagnie 1]]+Tableau15[[#This Row],[Compagnie 2]]","v":0},{"$f":"Tableau15[[#This Row],[Montant soumis]]-Tableau15[[#This Row],[Total]]","v":0},0,0]
[null,null,null,null,null,null,{"$f":"Tableau15[[#This Row],[Compagnie 1]]+Tableau15[[#This Row],[Compagnie 2]]","v":0},{"$f":"Tableau15[[#This Row],[Montant soumis]]-Tableau15[[#This Row],[Total]]","v":0},0,0]
[null,null,null,null,null,null,{"$f":"Tableau15[[#This Row],[Compagnie 1]]+Tableau15[[#This Row],[Compagnie 2]]","v":0},{"$f":"Tableau15[[#This Row],[Montant soumis]]-Tableau15[[#This Row],[Total]]","v":0},0,0]
[null,null,null,null,null,null,{"$f":"Tableau15[[#This Row],[Compagnie 1]]+Tableau15[[#This Row],[Compagnie 2]]","v":0},{"$f":"Tableau15[[#This Row],[Montant soumis]]-Tableau15[[#This Row],[Total]]","v":0},0,0]
[null,null,null,null,null,null,{"$f":"Tableau15[[#This Row],[Compagnie 1]]+Tableau15[[#This Row],[Compagnie 2]]","v":0},{"$f":"Tableau15[[#This Row],[Montant soumis]]-Tableau15[[#This Row],[Total]]","v":0},0,0]
[null,null,null,null,null,null,{"$f":"Tableau15[[#This Row],[Compagnie 1]]+Tableau15[[#This Row],[Compagnie 2]]","v":0},{"$f":"Tableau15[[#This Row],[Montant soumis]]-Tableau15[[#This Row],[Total]]","v":0},0,0]
[null,null,null,null,null,null,{"$f":"Tableau15[[#This Row],[Compagnie 1]]+Tableau15[[#This Row],[Compagnie 2]]","v":0},{"$f":"Tableau15[[#This Row],[Montant soumis]]-Tableau15[[#This Row],[Total]]","v":0},0,0]
[null,null,null,null,null,null,{"$f":"Tableau15[[#This Row],[Compagnie 1]]+Tableau15[[#This Row],[Compagnie 2]]","v":0},{"$f":"Tableau15[[#This Row],[Montant soumis]]-Tableau15[[#This Row],[Total]]","v":0},0,0]
[null,null,null,null,null,null,{"$f":"Tableau15[[#This Row],[Compagnie 1]]+Tableau15[[#This Row],[Compagnie 2]]","v":0},{"$f":"Tableau15[[#This Row],[Montant soumis]]-Tableau15[[#This Row],[Total]]","v":0},0,0]
[null,null,null,null,null,null,{"$f":"Tableau15[[#This Row],[Compagnie 1]]+Tableau15[[#This Row],[Compagnie 2]]","v":0},{"$f":"Tableau15[[#This Row],[Montant soumis]]-Tableau15[[#This Row],[Total]]","v":0},0,0]
[null,null,null,null,null,null,{"$f":"Tableau15[[#This Row],[Compagnie 1]]+Tableau15[[#This Row],[Compagnie 2]]","v":0},{"$f":"Tableau15[[#This Row],[Montant soumis]]-Tableau15[[#This Row],[Total]]","v":0},0,0]
[null,null,null,null,null,null,{"$f":"Tableau15[[#This Row],[Compagnie 1]]+Tableau15[[#This Row],[Compagnie 2]]","v":0},{"$f":"Tableau15[[#This Row],[Montant soumis]]-Tableau15[[#This Row],[Total]]","v":0},0,0]
[null,null,null,null,null,null,{"$f":"Tableau15[[#This Row],[Compagnie 1]]+Tableau15[[#This Row],[Compagnie 2]]","v":0},{"$f":"Tableau15[[#This Row],[Montant soumis]]-Tableau15[[#This Row],[Total]]","v":0},0,0]
[null,null,null,null,null,null,{"$f":"Tableau15[[#This Row],[Compagnie 1]]+Tableau15[[#This Row],[Compagnie 2]]","v":0},{"$f":"Tableau15[[#This Row],[Montant soumis]]-Tableau15[[#This Row],[Total]]","v":0},0,0]
[null,null,null,null,null,null,{"$f":"Tableau15[[#This Row],[Compagnie 1]]+Tableau15[[#This Row],[Compagnie 2]]","v":0},{"$f":"Tableau15[[#This Row],[Montant soumis]]-Tableau15[[#This Row],[Total]]","v":0},0,0]
[null,null,null,null,null,null,{"$f":"Tableau15[[#This Row],[Compagnie 1]]+Tableau15[[#This Row],[Compagnie 2]]","v":0},{"$f":"Tableau15[[#This Row],[Montant soumis]]-Tableau15[[#This Row],[Total]]","v":0},0,0]
[null,null,null,null,null,null,{"$f":"Tableau15[[#This Row],[Compagnie 1]]+Tableau15[[#This Row],[Compagnie 2]]","v":0},{"$f":"Tableau15[[#This Row],[Montant soumis]]-Tableau15[[#This Row],[Total]]","v":0},0,0]
[null,null,null,null,null,null,{"$f":"Tableau15[[#This Row],[Compagnie 1]]+Tableau15[[#This Row],[Compagnie 2]]","v":0},{"$f":"Tableau15[[#This Row],[Montant soumis]]-Tableau15[[#This Row],[Total]]","v":0},0,0]
[null,null,null,null,null,null,{"$f":"Tableau15[[#This Row],[Compagnie 1]]+Tableau15[[#This Row],[Compagnie 2]]","v":0},{"$f":"Tableau15[[#This Row],[Montant soumis]]-Tableau15[[#This Row],[Total]]","v":0},0,0]
[null,null,null,null,null,null,{"$f":"Tableau15[[#This Row],[Compagnie 1]]+Tableau15[[#This Row],[Compagnie 2]]","v":0},{"$f":"Tableau15[[#This Row],[Montant soumis]]-Tableau15[[#This Row],[Total]]","v":0},0,0]
[null,null,null,null,null,null,{"$f":"Tableau15[[#This Row],[Compagnie 1]]+Tableau15[[#This Row],[Compagnie 2]]","v":0},{"$f":"Tableau15[[#This Row],[Montant soumis]]-Tableau15[[#This Row],[Total]]","v":0},0,0]
[null,null,null,null,null,null,{"$f":"Tableau15[[#This Row],[Compagnie 1]]+Tableau15[[#This Row],[Compagnie 2]]","v":0},{"$f":"Tableau15[[#This Row],[Montant soumis]]-Tableau15[[#This Row],[Total]]","v":0},0,0]
[null,null,null,null,null,null,{"$f":"Tableau15[[#This Row],[Compagnie 1]]+Tableau15[[#This Row],[Compagnie 2]]","v":0},{"$f":"Tableau15[[#This Row],[Montant soumis]]-Tableau15[[#This Row],[Total]]","v":0},0,0]
[null,null,null,null,null,null,{"$f":"Tableau15[[#This Row],[Compagnie 1]]+Tableau15[[#This Row],[Compagnie 2]]","v":0},{"$f":"Tableau15[[#This Row],[Montant soumis]]-Tableau15[[#This Row],[Total]]","v":0},0,0]
[null,null,null,null,null,null,{"$f":"Tableau15[[#This Row],[Compagnie 1]]+Tableau15[[#This Row],[Compagnie 2]]","v":0},{"$f":"Tableau15[[#This Row],[Montant soumis]]-Tableau15[[#This Row],[Total]]","v":0},0,0]
[null,null,null,null,null,null,{"$f":"Tableau15[[#This Row],[Compagnie 1]]+Tableau15[[#This Row],[Compagnie 2]]","v":0},{"$f":"Tableau15[[#This Row],[Montant soumis]]-Tableau15[[#This Row],[Total]]","v":0},0,0]
[null,null,null,null,null,null,{"$f":"Tableau15[[#This Row],[Compagnie 1]]+Tableau15[[#This Row],[Compagnie 2]]","v":0},{"$f":"Tableau15[[#This Row],[Montant soumis]]-Tableau15[[#This Row],[Total]]","v":0},0,0]
[null,null,null,null,null,null,{"$f":"Tableau15[[#This Row],[Compagnie 1]]+Tableau15[[#This Row],[Compagnie 2]]","v":0},{"$f":"Tableau15[[#This Row],[Montant soumis]]-Tableau15[[#This Row],[Total]]","v":0},0,0]
[null,null,null,null,null,null,{"$f":"Tableau15[[#This Row],[Compagnie 1]]+Tableau15[[#This Row],[Compagnie 2]]","v":0},{"$f":"Tableau15[[#This Row],[Montant soumis]]-Tableau15[[#This Row],[Total]]","v":0},0,0]
[null,null,null,null,null,null,{"$f":"Tableau15[[#This Row],[Compagnie 1]]+Tableau15[[#This Row],[Compagnie 2]]","v":0},{"$f":"Tableau15[[#This Row],[Montant soumis]]-Tableau15[[#This Row],[Total]]","v":0},0,0]
[null,null,null,null,null,null,{"$f":"Tableau15[[#This Row],[Compagnie 1]]+Tableau15[[#This Row],[Compagnie 2]]","v":0},{"$f":"Tableau15[[#This Row],[Montant soumis]]-Tableau15[[#This Row],[Total]]","v":0},0,0]
[null,null,null,null,null,null,{"$f":"Tableau15[[#This Row],[Compagnie 1]]+Tableau15[[#This Row],[Compagnie 2]]","v":0},{"$f":"Tableau15[[#This Row],[Montant soumis]]-Tableau15[[#This Row],[Total]]","v":0},0,0]
[null,null,null,null,null,null,{"$f":"Tableau15[[#This Row],[Compagnie 1]]+Tableau15[[#This Row],[Compagnie 2]]","v":0},{"$f":"Tableau15[[#This Row],[Montant soumis]]-Tableau15[[#This Row],[Total]]","v":0},0,0]
[null,null,null,null,null,null,{"$f":"Tableau15[[#This Row],[Compagnie 1]]+Tableau15[[#This Row],[Compagnie 2]]","v":0},{"$f":"Tableau15[[#This Row],[Montant soumis]]-Tableau15[[#This Row],[Total]]","v":0},0,0]
[null,null,null,null,null,null,{"$f":"Tableau15[[#This Row],[Compagnie 1]]+Tableau15[[#This Row],[Compagnie 2]]","v":0},{"$f":"Tableau15[[#This Row],[Montant soumis]]-Tableau15[[#This Row],[Total]]","v":0},0,0]
[null,null,null,null,null,null,{"$f":"Tableau15[[#This Row],[Compagnie 1]]+Tableau15[[#This Row],[Compagnie 2]]","v":0},{"$f":"Tableau15[[#This Row],[Montant soumis]]-Tableau15[[#This Row],[Total]]","v":0},0,0]
[null,null,null,null,null,null,{"$f":"Tableau15[[#This Row],[Compagnie 1]]+Tableau15[[#This Row],[Compagnie 2]]","v":0},{"$f":"Tableau15[[#This Row],[Montant soumis]]-Tableau15[[#This Row],[Total]]","v":0},0,0]
[null,null,null,null,null,null,{"$f":"Tableau15[[#This Row],[Compagnie 1]]+Tableau15[[#This Row],[Compagnie 2]]","v":0},{"$f":"Tableau15[[#This Row],[Montant soumis]]-Tableau15[[#This Row],[Total]]","v":0},0,0]
[null,null,null,null,null,null,{"$f":"Tableau15[[#This Row],[Compagnie 1]]+Tableau15[[#This Row],[Compagnie 2]]","v":0},{"$f":"Tableau15[[#This Row],[Montant soumis]]-Tableau15[[#This Row],[Total]]","v":0},0,0]
[null,null,null,null,null,null,{"$f":"Tableau15[[#This Row],[Compagnie 1]]+Tableau15[[#This Row],[Compagnie 2]]","v":0},{"$f":"Tableau15[[#This Row],[Montant soumis]]-Tableau15[[#This Row],[Total]]","v":0},0,0]
[null,null,null,null,null,null,{"$f":"Tableau15[[#This Row],[Compagnie 1]]+Tableau15[[#This Row],[Compagnie 2]]","v":0},{"$f":"Tableau15[[#This Row],[Montant soumis]]-Tableau15[[#This Row],[Total]]","v":0},0,0]
[null,null,null,null,null,null,{"$f":"Tableau15[[#This Row],[Compagnie 1]]+Tableau15[[#This Row],[Compagnie 2]]","v":0},{"$f":"Tableau15[[#This Row],[Montant soumis]]-Tableau15[[#This Row],[Total]]","v":0},0,0]
[null,null,null,null,null,null,{"$f":"Tableau15[[#This Row],[Compagnie 1]]+Tableau15[[#This Row],[Compagnie 2]]","v":0},{"$f":"Tableau15[[#This Row],[Montant soumis]]-Tableau15[[#This Row],[Total]]","v":0},0,0]
[null,null,null,null,null,null,{"$f":"Tableau15[[#This Row],[Compagnie 1]]+Tableau15[[#This Row],[Compagnie 2]]","v":0},{"$f":"Tableau15[[#This Row],[Montant soumis]]-Tableau15[[#This Row],[Total]]","v":0},0,0]
[null,null,null,null,null,null,{"$f":"Tableau15[[#This Row],[Compagnie 1]]+Tableau15[[#This Row],[Compagnie 2]]","v":0},{"$f":"Tableau15[[#This Row],[Montant soumis]]-Tableau15[[#This Row],[Total]]","v":0},0,0]
[null,null,null,null,null,null,{"$f":"Tableau15[[#This Row],[Compagnie 1]]+Tableau15[[#This Row],[Compagnie 2]]","v":0},{"$f":"Tableau15[[#This Row],[Montant soumis]]-Tableau15[[#This Row],[Total]]","v":0},0,0]
[null,null,null,null,null,null,{"$f":"Tableau15[[#This Row],[Compagnie 1]]+Tableau15[[#This Row],[Compagnie 2]]","v":0},{"$f":"Tableau15[[#This Row],[Montant soumis]]-Tableau15[[#This Row],[Total]]","v":0},0,0]
[null,null,null,null,null,null,{"$f":"Tableau15[[#This Row],[Compagnie 1]]+Tableau15[[#This Row],[Compagnie 2]]","v":0},{"$f":"Tableau15[[#This Row],[Montant soumis]]-Tableau15[[#This Row],[Total]]","v":0},0,0]
[null,null,null,null,null,null,{"$f":"Tableau15[[#This Row],[Compagnie 1]]+Tableau15[[#This Row],[Compagnie 2]]","v":0},{"$f":"Tableau15[[#This Row],[Montant soumis]]-Tableau15[[#This Row],[Total]]","v":0},0,0]
[null,null,null,null,null,null,{"$f":"Tableau15[[#This Row],[Compagnie 1]]+Tableau15[[#This Row],[Compagnie 2]]","v":0},{"$f":"Tableau15[[#This Row],[Montant soumis]]-Tableau15[[#This Row],[Total]]","v":0},0,0]
[null,null,null,null,null,null,{"$f":"Tableau15[[#This Row],[Compagnie 1]]+Tableau15[[#This Row],[Compagnie 2]]","v":0},{"$f":"Tableau15[[#This Row],[Montant soumis]]-Tableau15[[#This Row],[Total]]","v":0},0,0]
[null,null,null,null,null,null,{"$f":"Tableau15[[#This Row],[Compagnie 1]]+Tableau15[[#This Row],[Compagnie 2]]","v":0},{"$f":"Tableau15[[#This Row],[Montant soumis]]-Tableau15[[#This Row],[Total]]","v":0},0,0]
[null,null,null,null,null,null,{"$f":"Tableau15[[#This Row],[Compagnie 1]]+Tableau15[[#This Row],[Compagnie 2]]","v":0},{"$f":"Tableau15[[#This Row],[Montant soumis]]-Tableau15[[#This Row],[Total]]","v":0},0,0]
[null,null,null,null,null,null,{"$f":"Tableau15[[#This Row],[Compagnie 1]]+Tableau15[[#This Row],[Compagnie 2]]","v":0},{"$f":"Tableau15[[#This Row],[Montant soumis]]-Tableau15[[#This Row],[Total]]","v":0},0,0]
[null,null,null,null,null,null,{"$f":"Tableau15[[#This Row],[Compagnie 1]]+Tableau15[[#This Row],[Compagnie 2]]","v":0},{"$f":"Tableau15[[#This Row],[Montant soumis]]-Tableau15[[#This Row],[Total]]","v":0},0,0]
[null,null,null,null,null,null,{"$f":"Tableau15[[#This Row],[Compagnie 1]]+Tableau15[[#This Row],[Compagnie 2]]","v":0},{"$f":"Tableau15[[#This Row],[Montant soumis]]-Tableau15[[#This Row],[Total]]","v":0},0,0]
[null,null,null,null,null,null,{"$f":"Tableau15[[#This Row],[Compagnie 1]]+Tableau15[[#This Row],[Compagnie 2]]","v":0},{"$f":"Tableau15[[#This Row],[Montant soumis]]-Tableau15[[#This Row],[Total]]","v":0},0,0]
[null,null,null,null,null,null,{"$f":"Tableau15[[#This Row],[Compagnie 1]]+Tableau15[[#This Row],[Compagnie 2]]","v":0},{"$f":"Tableau15[[#This Row],[Montant soumis]]-Tableau15[[#This Row],[Total]]","v":0},0,0]
[null,null,null,null,null,null,{"$f":"Tableau15[[#This Row],[Compagnie 1]]+Tableau15[[#This Row],[Compagnie 2]]","v":0},{"$f":"Tableau15[[#This Row],[Montant soumis]]-Tableau15[[#This Row],[Total]]","v":0},0,0]
[null,null,null,null,null,null,{"$f":"Tableau15[[#This Row],[Compagnie 1]]+Tableau15[[#This Row],[Compagnie 2]]","v":0},{"$f":"Tableau15[[#This Row],[Montant soumis]]-Tableau15[[#This Row],[Total]]","v":0},0,0]
[null,null,null,null,null,null,{"$f":"Tableau15[[#This Row],[Compagnie 1]]+Tableau15[[#This Row],[Compagnie 2]]","v":0},{"$f":"Tableau15[[#This Row],[Montant soumis]]-Tableau15[[#This Row],[Total]]","v":0},0,0]
[null,null,null,null,null,null,{"$f":"Tableau15[[#This Row],[Compagnie 1]]+Tableau15[[#This Row],[Compagnie 2]]","v":0},{"$f":"Tableau15[[#This Row],[Montant soumis]]-Tableau15[[#This Row],[Total]]","v":0},0,0]
[null,null,null,null,null,null,{"$f":"Tableau15[[#This Row],[Compagnie 1]]+Tableau15[[#This Row],[Compagnie 2]]","v":0},{"$f":"Tableau15[[#This Row],[Montant soumis]]-Tableau15[[#This Row],[Total]]","v":0},0,0]
[null,null,null,null,null,null,{"$f":"Tableau15[[#This Row],[Compagnie 1]]+Tableau15[[#This Row],[Compagnie 2]]","v":0},{"$f":"Tableau15[[#This Row],[Montant soumis]]-Tableau15[[#This Row],[Total]]","v":0},0,0]
[null,null,null,null,null,null,{"$f":"Tableau15[[#This Row],[Compagnie 1]]+Tableau15[[#This Row],[Compagnie 2]]","v":0},{"$f":"Tableau15[[#This Row],[Montant soumis]]-Tableau15[[#This Row],[Total]]","v":0},0,0]
[null,null,null,null,null,null,{"$f":"Tableau15[[#This Row],[Compagnie 1]]+Tableau15[[#This Row],[Compagnie 2]]","v":0},{"$f":"Tableau15[[#This Row],[Montant soumis]]-Tableau15[[#This Row],[Total]]","v":0},0,0]
[null,null,null,null,null,null,{"$f":"Tableau15[[#This Row],[Compagnie 1]]+Tableau15[[#This Row],[Compagnie 2]]","v":0},{"$f":"Tableau15[[#This Row],[Montant soumis]]-Tableau15[[#This Row],[Total]]","v":0},0,0]
[null,null,null,null,null,null,{"$f":"Tableau15[[#This Row],[Compagnie 1]]+Tableau15[[#This Row],[Compagnie 2]]","v":0},{"$f":"Tableau15[[#This Row],[Montant soumis]]-Tableau15[[#This Row],[Total]]","v":0},0,0]
[null,null,null,null,null,null,{"$f":"Tableau15[[#This Row],[Compagnie 1]]+Tableau15[[#This Row],[Compagnie 2]]","v":0},{"$f":"Tableau15[[#This Row],[Montant soumis]]-Tableau15[[#This Row],[Total]]","v":0},0,0]
[null,null,null,null,null,null,{"$f":"Tableau15[[#This Row],[Compagnie 1]]+Tableau15[[#This Row],[Compagnie 2]]","v":0},{"$f":"Tableau15[[#This Row],[Montant soumis]]-Tableau15[[#This Row],[Total]]","v":0},0,0]
[null,null,null,null,null,null,{"$f":"Tableau15[[#This Row],[Compagnie 1]]+Tableau15[[#This Row],[Compagnie 2]]","v":0},{"$f":"Tableau15[[#This Row],[Montant soumis]]-Tableau15[[#This Row],[Total]]","v":0},0,0]
[null,null,null,null,null,null,{"$f":"Tableau15[[#This Row],[Compagnie 1]]+Tableau15[[#This Row],[Compagnie 2]]","v":0},{"$f":"Tableau15[[#This Row],[Montant soumis]]-Tableau15[[#This Row],[Total]]","v":0},0,0]
[null,null,null,null,null,null,{"$f":"Tableau15[[#This Row],[Compagnie 1]]+Tableau15[[#This Row],[Compagnie 2]]","v":0},{"$f":"Tableau15[[#This Row],[Montant soumis]]-Tableau15[[#This Row],[Total]]","v":0},0,0]
[null,null,null,null,null,null,{"$f":"Tableau15[[#This Row],[Compagnie 1]]+Tableau15[[#This Row],[Compagnie 2]]","v":0},{"$f":"Tableau15[[#This Row],[Montant soumis]]-Tableau15[[#This Row],[Total]]","v":0},0,0]
[null,null,null,null,null,null,{"$f":"Tableau15[[#This Row],[Compagnie 1]]+Tableau15[[#This Row],[Compagnie 2]]","v":0},{"$f":"Tableau15[[#This Row],[Montant soumis]]-Tableau15[[#This Row],[Total]]","v":0},0,0]
[null,null,null,null,null,null,{"$f":"Tableau15[[#This Row],[Compagnie 1]]+Tableau15[[#This Row],[Compagnie 2]]","v":0},{"$f":"Tableau15[[#This Row],[Montant soumis]]-Tableau15[[#This Row],[Total]]","v":0},0,0]
[null,null,null,null,null,null,{"$f":"Tableau15[[#This Row],[Compagnie 1]]+Tableau15[[#This Row],[Compagnie 2]]","v":0},{"$f":"Tableau15[[#This Row],[Montant soumis]]-Tableau15[[#This Row],[Total]]","v":0},0,0]
[null,null,null,null,null,null,{"$f":"Tableau15[[#This Row],[Compagnie 1]]+Tableau15[[#This Row],[Compagnie 2]]","v":0},{"$f":"Tableau15[[#This Row],[Montant soumis]]-Tableau15[[#This Row],[Total]]","v":0},0,0]
[null,null,null,null,null,null,{"$f":"Tableau15[[#This Row],[Compagnie 1]]+Tableau15[[#This Row],[Compagnie 2]]","v":0},{"$f":"Tableau15[[#This Row],[Montant soumis]]-Tableau15[[#This Row],[Total]]","v":0},0,0]
[null,null,null,null,null,null,{"$f":"Tableau15[[#This Row],[Compagnie 1]]+Tableau15[[#This Row],[Compagnie 2]]","v":0},{"$f":"Tableau15[[#This Row],[Montant soumis]]-Tableau15[[#This Row],[Total]]","v":0},0,0]
[null,null,null,null,null,null,{"$f":"Tableau15[[#This Row],[Compagnie 1]]+Tableau15[[#This Row],[Compagnie 2]]","v":0},{"$f":"Tableau15[[#This Row],[Montant soumis]]-Tableau15[[#This Row],[Total]]","v":0},0,0]
[null,null,null,null,null,null,{"$f":"Tableau15[[#This Row],[Compagnie 1]]+Tableau15[[#This Row],[Compagnie 2]]","v":0},{"$f":"Tableau15[[#This Row],[Montant soumis]]-Tableau15[[#This Row],[Total]]","v":0},0,0]
[null,null,null,null,null,null,{"$f":"Tableau15[[#This Row],[Compagnie 1]]+Tableau15[[#This Row],[Compagnie 2]]","v":0},{"$f":"Tableau15[[#This Row],[Montant soumis]]-Tableau15[[#This Row],[Total]]","v":0},0,0]
[null,null,null,null,null,null,{"$f":"Tableau15[[#This Row],[Compagnie 1]]+Tableau15[[#This Row],[Compagnie 2]]","v":0},{"$f":"Tableau15[[#This Row],[Montant soumis]]-Tableau15[[#This Row],[Total]]","v":0},0,0]
[null,null,null,null,null,null,{"$f":"Tableau15[[#This Row],[Compagnie 1]]+Tableau15[[#This Row],[Compagnie 2]]","v":0},{"$f":"Tableau15[[#This Row],[Montant soumis]]-Tableau15[[#This Row],[Total]]","v":0},0,0]
[null,null,null,null,null,null,{"$f":"Tableau15[[#This Row],[Compagnie 1]]+Tableau15[[#This Row],[Compagnie 2]]","v":0},{"$f":"Tableau15[[#This Row],[Montant soumis]]-Tableau15[[#This Row],[Total]]","v":0},0,0]
[null,null,null,null,null,null,{"$f":"Tableau15[[#This Row],[Compagnie 1]]+Tableau15[[#This Row],[Compagnie 2]]","v":0},{"$f":"Tableau15[[#This Row],[Montant soumis]]-Tableau15[[#This Row],[Total]]","v":0},0,0]
[null,null,null,null,null,null,{"$f":"Tableau15[[#This Row],[Compagnie 1]]+Tableau15[[#This Row],[Compagnie 2]]","v":0},{"$f":"Tableau15[[#This Row],[Montant soumis]]-Tableau15[[#This Row],[Total]]","v":0},0,0]
[null,null,null,null,null,null,{"$f":"Tableau15[[#This Row],[Compagnie 1]]+Tableau15[[#This Row],[Compagnie 2]]","v":0},{"$f":"Tableau15[[#This Row],[Montant soumis]]-Tableau15[[#This Row],[Total]]","v":0},0,0]
[null,null,null,null,null,null,{"$f":"Tableau15[[#This Row],[Compagnie 1]]+Tableau15[[#This Row],[Compagnie 2]]","v":0},{"$f":"Tableau15[[#This Row],[Montant soumis]]-Tableau15[[#This Row],[Total]]","v":0},0,0]
[null,null,null,null,null,null,{"$f":"Tableau15[[#This Row],[Compagnie 1]]+Tableau15[[#This Row],[Compagnie 2]]","v":0},{"$f":"Tableau15[[#This Row],[Montant soumis]]-Tableau15[[#This Row],[Total]]","v":0},0,0]
[null,null,null,null,null,null,{"$f":"Tableau15[[#This Row],[Compagnie 1]]+Tableau15[[#This Row],[Compagnie 2]]","v":0},{"$f":"Tableau15[[#This Row],[Montant soumis]]-Tableau15[[#This Row],[Total]]","v":0},0,0]
[null,null,null,null,null,null,{"$f":"Tableau15[[#This Row],[Compagnie 1]]+Tableau15[[#This Row],[Compagnie 2]]","v":0},{"$f":"Tableau15[[#This Row],[Montant soumis]]-Tableau15[[#This Row],[Total]]","v":0},0,0]
[null,null,null,null,null,null,{"$f":"Tableau15[[#This Row],[Compagnie 1]]+Tableau15[[#This Row],[Compagnie 2]]","v":0},{"$f":"Tableau15[[#This Row],[Montant soumis]]-Tableau15[[#This Row],[Total]]","v":0},0,0]
[null,null,null,null,null,null,{"$f":"Tableau15[[#This Row],[Compagnie 1]]+Tableau15[[#This Row],[Compagnie 2]]","v":0},{"$f":"Tableau15[[#This Row],[Montant soumis]]-Tableau15[[#This Row],[Total]]","v":0},0,0]
[null,null,null,null,null,null,{"$f":"Tableau15[[#This Row],[Compagnie 1]]+Tableau15[[#This Row],[Compagnie 2]]","v":0},{"$f":"Tableau15[[#This Row],[Montant soumis]]-Tableau15[[#This Row],[Total]]","v":0},0,0]
[null,null,null,null,null,null,{"$f":"Tableau15[[#This Row],[Compagnie 1]]+Tableau15[[#This Row],[Compagnie 2]]","v":0},{"$f":"Tableau15[[#This Row],[Montant soumis]]-Tableau15[[#This Row],[Total]]","v":0},0,0]
[null,null,null,null,null,null,{"$f":"Tableau15[[#This Row],[Compagnie 1]]+Tableau15[[#This Row],[Compagnie 2]]","v":0},{"$f":"Tableau15[[#This Row],[Montant soumis]]-Tableau15[[#This Row],[Total]]","v":0},0,0]
[null,null,null,null,null,null,{"$f":"Tableau15[[#This Row],[Compagnie 1]]+Tableau15[[#This Row],[Compagnie 2]]","v":0},{"$f":"Tableau15[[#This Row],[Montant soumis]]-Tableau15[[#This Row],[Total]]","v":0},0,0]
[null,null,null,null,null,null,{"$f":"Tableau15[[#This Row],[Compagnie 1]]+Tableau15[[#This Row],[Compagnie 2]]","v":0},{"$f":"Tableau15[[#This Row],[Montant soumis]]-Tableau15[[#This Row],[Total]]","v":0},0,0]
[null,null,null,null,null,null,{"$f":"Tableau15[[#This Row],[Compagnie 1]]+Tableau15[[#This Row],[Compagnie 2]]","v":0},{"$f":"Tableau15[[#This Row],[Montant soumis]]-Tableau15[[#This Row],[Total]]","v":0},0,0]
[null,null,null,null,null,null,{"$f":"Tableau15[[#This Row],[Compagnie 1]]+Tableau15[[#This Row],[Compagnie 2]]","v":0},{"$f":"Tableau15[[#This Row],[Montant soumis]]-Tableau15[[#This Row],[Total]]","v":0},0,0]
[null,null,null,null,null,null,{"$f":"Tableau15[[#This Row],[Compagnie 1]]+Tableau15[[#This Row],[Compagnie 2]]","v":0},{"$f":"Tableau15[[#This Row],[Montant soumis]]-Tableau15[[#This Row],[Total]]","v":0},0,0]
[null,null,null,null,null,null,{"$f":"Tableau15[[#This Row],[Compagnie 1]]+Tableau15[[#This Row],[Compagnie 2]]","v":0},{"$f":"Tableau15[[#This Row],[Montant soumis]]-Tableau15[[#This Row],[Total]]","v":0},0,0]
[null,null,null,null,null,null,{"$f":"Tableau15[[#This Row],[Compagnie 1]]+Tableau15[[#This Row],[Compagnie 2]]","v":0},{"$f":"Tableau15[[#This Row],[Montant soumis]]-Tableau15[[#This Row],[Total]]","v":0},0,0]
[null,null,null,null,null,null,{"$f":"Tableau15[[#This Row],[Compagnie 1]]+Tableau15[[#This Row],[Compagnie 2]]","v":0},{"$f":"Tableau15[[#This Row],[Montant soumis]]-Tableau15[[#This Row],[Total]]","v":0},0,0]
[null,null,null,null,null,null,{"$f":"Tableau15[[#This Row],[Compagnie 1]]+Tableau15[[#This Row],[Compagnie 2]]","v":0},{"$f":"Tableau15[[#This Row],[Montant soumis]]-Tableau15[[#This Row],[Total]]","v":0},0,0]
[null,null,null,null,null,null,{"$f":"Tableau15[[#This Row],[Compagnie 1]]+Tableau15[[#This Row],[Compagnie 2]]","v":0},{"$f":"Tableau15[[#This Row],[Montant soumis]]-Tableau15[[#This Row],[Total]]","v":0},0,0]
[null,null,null,null,null,null,{"$f":"Tableau15[[#This Row],[Compagnie 1]]+Tableau15[[#This Row],[Compagnie 2]]","v":0},{"$f":"Tableau15[[#This Row],[Montant soumis]]-Tableau15[[#This Row],[Total]]","v":0},0,0]
[null,null,null,null,null,null,{"$f":"Tableau15[[#This Row],[Compagnie 1]]+Tableau15[[#This Row],[Compagnie 2]]","v":0},{"$f":"Tableau15[[#This Row],[Montant soumis]]-Tableau15[[#This Row],[Total]]","v":0},0,0]
[null,null,null,null,null,null,{"$f":"Tableau15[[#This Row],[Compagnie 1]]+Tableau15[[#This Row],[Compagnie 2]]","v":0},{"$f":"Tableau15[[#This Row],[Montant soumis]]-Tableau15[[#This Row],[Total]]","v":0},0,0]
[null,null,null,null,null,null,{"$f":"Tableau15[[#This Row],[Compagnie 1]]+Tableau15[[#This Row],[Compagnie 2]]","v":0},{"$f":"Tableau15[[#This Row],[Montant soumis]]-Tableau15[[#This Row],[Total]]","v":0},0,0]
[null,null,null,null,null,null,{"$f":"Tableau15[[#This Row],[Compagnie 1]]+Tableau15[[#This Row],[Compagnie 2]]","v":0},{"$f":"Tableau15[[#This Row],[Montant soumis]]-Tableau15[[#This Row],[Total]]","v":0},0,0]
[null,null,null,null,null,null,{"$f":"Tableau15[[#This Row],[Compagnie 1]]+Tableau15[[#This Row],[Compagnie 2]]","v":0},{"$f":"Tableau15[[#This Row],[Montant soumis]]-Tableau15[[#This Row],[Total]]","v":0},0,0]
[null,null,null,null,null,null,{"$f":"Tableau15[[#This Row],[Compagnie 1]]+Tableau15[[#This Row],[Compagnie 2]]","v":0},{"$f":"Tableau15[[#This Row],[Montant soumis]]-Tableau15[[#This Row],[Total]]","v":0},0,0]
[null,null,null,null,null,null,{"$f":"Tableau15[[#This Row],[Compagnie 1]]+Tableau15[[#This Row],[Compagnie 2]]","v":0},{"$f":"Tableau15[[#This Row],[Montant soumis]]-Tableau15[[#This Row],[Total]]","v":0},0,0]
[null,null,null,null,null,null,{"$f":"Tableau15[[#This Row],[Compagnie 1]]+Tableau15[[#This Row],[Compagnie 2]]","v":0},{"$f":"Tableau15[[#This Row],[Montant soumis]]-Tableau15[[#This Row],[Total]]","v":0},0,0]
[null,null,null,null,null,null,{"$f":"Tableau15[[#This Row],[Compagnie 1]]+Tableau15[[#This Row],[Compagnie 2]]","v":0},{"$f":"Tableau15[[#This Row],[Montant soumis]]-Tableau15[[#This Row],[Total]]","v":0},0,0]
[null,null,null,null,null,null,{"$f":"Tableau15[[#This Row],[Compagnie 1]]+Tableau15[[#This Row],[Compagnie 2]]","v":0},{"$f":"Tableau15[[#This Row],[Montant soumis]]-Tableau15[[#This Row],[Total]]","v":0},0,0]
[null,null,null,null,null,null,{"$f":"Tableau15[[#This Row],[Compagnie 1]]+Tableau15[[#This Row],[Compagnie 2]]","v":0},{"$f":"Tableau15[[#This Row],[Montant soumis]]-Tableau15[[#This Row],[Total]]","v":0},0,0]
[null,null,null,null,null,null,{"$f":"Tableau15[[#This Row],[Compagnie 1]]+Tableau15[[#This Row],[Compagnie 2]]","v":0},{"$f":"Tableau15[[#This Row],[Montant soumis]]-Tableau15[[#This Row],[Total]]","v":0},0,0]
[null,null,null,null,null,null,{"$f":"Tableau15[[#This Row],[Compagnie 1]]+Tableau15[[#This Row],[Compagnie 2]]","v":0},{"$f":"Tableau15[[#This Row],[Montant soumis]]-Tableau15[[#This Row],[Total]]","v":0},0,0]
[null,null,null,null,null,null,{"$f":"Tableau15[[#This Row],[Compagnie 1]]+Tableau15[[#This Row],[Compagnie 2]]","v":0},{"$f":"Tableau15[[#This Row],[Montant soumis]]-Tableau15[[#This Row],[Total]]","v":0},0,0]
[null,null,null,null,null,null,{"$f":"Tableau15[[#This Row],[Compagnie 1]]+Tableau15[[#This Row],[Compagnie 2]]","v":0},{"$f":"Tableau15[[#This Row],[Montant soumis]]-Tableau15[[#This Row],[Total]]","v":0},0,0]
[null,null,null,null,null,null,{"$f":"Tableau15[[#This Row],[Compagnie 1]]+Tableau15[[#This Row],[Compagnie 2]]","v":0},{"$f":"Tableau15[[#This Row],[Montant soumis]]-Tableau15[[#This Row],[Total]]","v":0},0,0]
[null,null,null,null,null,null,{"$f":"Tableau15[[#This Row],[Compagnie 1]]+Tableau15[[#This Row],[Compagnie 2]]","v":0},{"$f":"Tableau15[[#This Row],[Montant soumis]]-Tableau15[[#This Row],[Total]]","v":0},0,0]
[null,null,null,null,null,null,{"$f":"Tableau15[[#This Row],[Compagnie 1]]+Tableau15[[#This Row],[Compagnie 2]]","v":0},{"$f":"Tableau15[[#This Row],[Montant soumis]]-Tableau15[[#This Row],[Total]]","v":0},0,0]
[null,null,null,null,null,null,{"$f":"Tableau15[[#This Row],[Compagnie 1]]+Tableau15[[#This Row],[Compagnie 2]]","v":0},{"$f":"Tableau15[[#This Row],[Montant soumis]]-Tableau15[[#This Row],[Total]]","v":0},0,0]
[null,null,null,null,null,null,{"$f":"Tableau15[[#This Row],[Compagnie 1]]+Tableau15[[#This Row],[Compagnie 2]]","v":0},{"$f":"Tableau15[[#This Row],[Montant soumis]]-Tableau15[[#This Row],[Total]]","v":0},0,0]
[null,null,null,null,null,null,{"$f":"Tableau15[[#This Row],[Compagnie 1]]+Tableau15[[#This Row],[Compagnie 2]]","v":0},{"$f":"Tableau15[[#This Row],[Montant soumis]]-Tableau15[[#This Row],[Total]]","v":0},0,0]
[null,null,null,null,null,null,{"$f":"Tableau15[[#This Row],[Compagnie 1]]+Tableau15[[#This Row],[Compagnie 2]]","v":0},{"$f":"Tableau15[[#This Row],[Montant soumis]]-Tableau15[[#This Row],[Total]]","v":0},0,0]
["Total",null,{"$f":"SUBTOTAL(103,Tableau15[Type de frais médical])","v":0},{"$f":"SUBTOTAL(109,Tableau15[Montant soumis])","v":0},null,null,{"$f":"SUBTOTAL(109,Tableau15[Total])","v":0},{"$f":"SUBTOTAL(109,Tableau15[Montant admissible])","v":0},{"$f":"SUBTOTAL(109,Tableau15[Fédéral])","v":0},{"$f":"SUBTOTAL(109,Tableau15[Québec])","v":0}]

{"sheet":"Liste de frais courants","index":4,"n_rows":55,"n_cols":3,"rows_kept":55,"cut":false,"hidden":true,"merged":[]}
[]
["Nom utilisé","Valeur","Description"]
["Acupuncture",true]
["Appareil auditif",false,"Appareil auditif incluant les piles et les réparations"]
["Audiologie",false]
["Autre",false,"Veuillez fournir une description et l'équipe Escient en fera l'analyse"]
["Chiropratique",false]
["Chirurgie de l'œil",false,"Correction de la vue au laser"]
["Conseiller d'orientation",false]
["CPAP",false,"CPAP (machine de ventilation spontanée en pression positive continue + pièces d'accessoires de remplacement, mais exclut l'eau distillée)"]
["Dentisterie",false,"Dentiste/orthodontiste etc. pour des soins dentaires, hygiénistes dentaires"]
["Diététiste",false]
["Ergothérapie",false]
["Fertilité",false,"Infertilité : frais payés à une clinique de fertilité ou à une banque de donneurs d'ovules ou de sperme dans le but de devenir parent (Québec : voir crédit pour traitement d'infertilité), traitement in vitro (crédit d'impôt pour l'infertité) "]
["Homéopathie",true]
["Infirmier(e)",false,"Infirmier(e)"]
["Infirmier(e)",false,"Infirmier(e) praticien(ne) spécialisé(e)"]
["Kinésithérapie",true,"Kinésithérapeute"]
["Lentilles",false,"Lentilles cornéennes"]
["Massothérapie",true,"Massothérapeute"]
["Médical",false,"Inhalothérapeute"]
["Médical",false,"Médecin (frais versés pour des services professionnels en clinique privée admissible)"]
["Médical",false,"Analyses médicales (sang, urine, etc.)"]
["Médical",false,"Examen radiologique (rayon X)"]
["Médical",false,"Sage-femme"]
["Médical",false,"Imagerie par résonnance magnétique (IRM)"]
["Médical",false,"Échographie"]
["Médical",false,"Scan"]
["Médical",false,"Scintigraphie"]
["Médical",false,"Attestation ou certificat médical : frais payés "]
["Médicament",false,"Frais de médicament (sauf médicament sans ordonnance et les vitamines même si prescrites)"]
["Monture lunettes",false,"Lunettes avec prescription (maximum 200 $ pour la monture au Québec)"]
["Naturopathie",true]
["Optométrie",false,"Optométriste : examen de la vue"]
["Orthopédagogie",false]
["Orthophonie",false]
["Ostéopathie",true]
["Physiothérapie",false]
["Phytothérapie",true]
["Podiatre",false,"Podiatre : inclus les traitements et les orthèses"]
["Prime d'assurance",false,"Cotisations versés à un régime d'assurance (médicaments, maladie et voyage)"]
["Psychothérapie",false,"Psychoéducateur pour des services de psychothérapie"]
["Psychothérapie",false,"Criminologue pour des services de psychothérapie"]
["Psychothérapie",false,"Thérapeute congugal et familial pour des services de thérapie"]
["Psychothérapie",false,"Psychologue"]
["Psychothérapie",false,"Sexologue"]
["Psychothérapie",false,"Travailleur social pour des services de psychothérapie et de réadaptation (handicap, accident)"]
["Traitement esthétique",true,"Injection (esthétique)"]
["Traitement esthétique",false,"Botox"]
["Traitement esthétique",false,"Chirurgie esthétique"]
["Traitement esthétique",false,"Blanchiment des dents"]
["Traitement esthétique",false,"Épilation"]
["Traitement esthétique",false,"Dédatouage"]
["Traitement esthétique",false,"Traitement des taches au laser"]
["Verres ou lunettes",false,"Lunettes avec prescription (maximum 200 $ pour la monture au Québec)"]

{"sheet":"Admissibles","index":5,"n_rows":157,"n_cols":2,"rows_kept":157,"cut":false,"hidden":true,"merged":[[128,0,149,0],[47,0,53,0],[62,1,62,6],[46,1,46,3],[29,0,37,0],[63,0,65,0],[146,1,146,6],[123,1,123,6],[124,1,124,6],[115,1,115,6],[116,1,116,6],[117,1,117,6],[118,1,118,6],[119,1,119,6],[120,1,120,6],[99,1,99,6],[149,1,149,6],[152,1,152,6],[153,1,153,6],[154,1,154,6],[141,1,141,6],[142,1,142,6],[143,1,143,6],[144,1,144,6],[145,1,145,6],[90,1,90,6],[64,1,64,6],[63,1,63,6],[147,1,147,6],[148,1,148,6],[100,1,100,6],[101,1,101,6],[102,1,102,6],[103,1,103,6],[104,1,104,6],[105,1,105,6],[106,1,106,6],[121,1,121,6],[122,1,122,6],[111,1,111,6],[112,1,112,6],[152,0,157,0],[128,1,128,6],[129,1,129,6],[130,1,130,6],[131,1,131,6],[132,1,132,6],[133,1,133,6],[134,1,134,6],[135,1,135,6],[136,1,136,6],[137,1,137,6],[138,1,138,6],[139,1,139,6],[140,1,140,6],[155,1,155,6],[156,1,156,6],[27,0,28,0],[15,0,20,0],[4,0,5,0],[70,0,81,0],[93,0,124,0],[113,1,113,6],[114,1,114,6],[107,1,107,6],[108,1,108,6],[109,1,109,6],[110,1,110,6],[98,1,98,6],[93,1,93,6],[94,1,94,6],[95,1,95,6],[96,1,96,6],[97,1,97,6]]}
[]
[]
["Nom utilisé"]
["Médicament","Frais de médicaments (sauf médicaments sans ordonnance et vitamines même si prescrit)"]
["Soin dentaire","Dentiste/orthodontiste etc. pour des soins dentaires"]
[null,"Hygiénistes dentaires"]
["Optométriste","Optométriste : Examen de la vue"]
["Verres lunette","Lunette avec prescription (maximum 200 $ pour la monture au Québec)"]
["Monture lunette","Lentilles cornéennes"]
["Lentilles"]
["Chirurgie de l'œil","Correction de la vue au laser"]
["Acupuncteur"]
["Audiologiste"]
["Chiropraticien"]
["Conseiller d'orientation"]
["Psychothérapie","Psychoéducateurs pour des services de psychothérapie"]
[null,"Criminologues pour des services de psychothérapie"]
[null,"Thérapeute congugal et familial pour des services de thérapie"]
[null,"Psychologue"]
[null,"Sexologue"]
[null,"Travailleur social pour des services de psychothérapie et de réadaptation (handicap, accident)"]
["Homéopathes"]
["Naturopathe"]
["Ostéopathes"]
["Phytothérapeutes"]
["Diététiste"]
["Ergothérapeute"]
["Infirmier(e)","Infirmier(e)"]
[null,"Infirmier(e) praticien spécialisé"]
["Médecin","Inhalothérapeute"]
[null,"Médecin (frais versés pour des services professionnels en clinique privée admissible)"]
[null,"Analyses de laboratoire (prise de sang, cultures etc.)"]
[null,"Examen radiologiques (Rayon X)"]
[null,"Sage-femme"]
[null,"Imagerie par résonnance magnétique (IRM)"]
[null,"Échographie"]
[null,"Scanner"]
[null,"Scintigraphie"]
["Orthophoniste"]
["Orthopédagogue"]
["Physiothérapeutes"]
["Podiatre","Podiatre: inclus les traitements et les orthèses"]
["Appareil auditif","Appareil auditif incluant les piles et les réparations"]
["CPAP","CPAP (machine de ventilation spontanée en pression positive continue + pièces d'accessoires de remplacement, mais exclut l'eau distillée)"]
["Expertise médical","Attestation ou certificat médical : Frais payés "]
["Fertilité","Infertilité : frais payés à une clinique de fertilité ou à une banque de donneurs d'ovules ou de sperme dans le but de devenir parent (Québec voir crédit pour traitement infertilité)"]
["Prime d'assurance","Cotisations versés à un régime d'assurance (médicaments, maladies et voyage)"]
["Chirurgie et traitement esthétique","Injection (Esthétique)"]
[null,"Botox"]
[null,"Chirurgie esthétique"]
[null,"Blanchiment des dents"]
[null,"Épilation"]
[null,"Enlèvement de tatouage"]
[null,"Traitement des tâches au laser"]
["Massothérapie","Massothérapeute"]
["Kinésithérapie","Kinésithérapeute"]
[]
[]
[null,"Mobilité : Achat ou location d'un corset orthopédique"]
[null,"Mobilité : Achat ou location d'un fauteuil roulant"]
[null,"Mobilité : Chaussures orthopédiques ou pièce intérieure de chaussure faite sur mesure et délivrée sur ordonnance"]
[null,"Mobilité : Dispositif pour aider une personne à entrer dans une baignoire ou une douche"]
[null,"Incontinence : Achat de couches, de sous-vêtements jetables, de cathéters, de plateaux à cathéters, de tubes ou tout autre produit utilisé par une personne souffrant d'incontinence "]
["Autre","Frais de transport par ambulance"]
[null,"Déficience grave et prolongée : rémunération pour des soins prescrit par un médecin à une personne qui n'est pas en lien de dépendance"]
[null,"Déficience grave et prolongée : frais de séjour dans une maison de santé (attestation obligatoire)"]
[]
[]
[]
[null,"Prescription obligatoire"]
["Autre","Oxygène"]
[null,"Extrait hépatique injectable"]
[null,"Vitamines B12 (traitement anémie)"]
[null,"Aiguilles et seringues servant à des injections"]
[null,"Cannabis, l'huile de cannabis, les graines ou produits de cannabis achetés à des fins médicales"]
[null,"Insuline"]
[null,"Pompe à perfusion utilisée pour traitement diabète et le matériel connexe jetable"]
[null,"Glucomètre"]
[null,"Mobilité : Chaussures orthopédiques ou pièce intérieure de chaussure faite sur mesure et délivrée sur ordonnance"]
[null,"Mobilité : Dispositif pour aider une personne à entrer dans une baignoire ou une douche"]
[null,"Lit d'hôpital et ses accessoires"]
[null,"Bas de compression"]
[{"$f":"B83","v":"Orthopédagogue"},"Orthopédagogue"]
[]
[null,"QUÉBEC SEULEMENT"]
[{"$f":"B86","v":"Homéopathes"},"Homéopathes"]
[{"$f":"B87","v":"Naturopathe"},"Naturopathe"]
[{"$f":"B88","v":"Ostéopathes"},"Ostéopathes"]
[{"$f":"B89","v":"Phytothérapeutes"},"Phytothérapeutes"]
["Psychothérapie","Psychothérapeute légalement habillité à exercer la psychothérapie"]
["Autre","Toute autre personne exerçant une profession de soins ou de traitement de santé si cette profession est régie par un ordre professionnel du Québec"]
[]
[null,"CAS SPÉCIFIQUE PRESCRIPTION OBLIGATOIRE"]
["Autre","Maladie chronique grave : 50 % du coût d'un climatiseur (maximum 1 000 $)"]
[null,"Maladie respiratoire chronique  : dispositif ou équipement,  comme appareil de filtration ou de purification de l'air ou de l'eau, conçu pour des personnes ayant une maladie respiratoire chronique (excluant climatiseur, humidificateur, déshumidificateurs, échangeur thermiques, échangeurs d'air et les thermopompes)"]
[null,"Troubles chroniques du système immunitaire : dispositif ou équipement, comme un appareil de filtration ou de purification de l'air ou de l'eau,  conçu pour des personnes ayant un Troubles chroniques du système immunitaire (excluant climatiseur, humidificateur, déshumidificateurs, échangeur thermiques, échangeurs d'air et les thermopompes)"]
[null,"Prothèse mammaire externe nécessaire à la suite d'une mastectomie"]
[null,"Prothèse capillaire pour une personne qui a subi une perte anormlae de cheveux en raison d'une maladie, d'un traitement médical ou d'un accident"]
[null,"Motricité : Fauteuil monté sur rail et fonctionnant mécaniquement pour permettre à une personne d'utiliser un escalier"]
[null,"Motricité : Dispositif conçu pour aider une personne dont la mobilité est réduite à marcher"]
[null,"Motricité : Dispositif conçu pour aider une personne dont la mobilité est réduite de conduire"]
[null,"Motricité : Plateforme élévatrice ou tout autre équipement de transport mécanique conçue exclusivement pour permettre à une personne handicapée d'accéder aux différentes parties d'un bâtiment, de monter dans son véhicule ou d'y placer son fauteuil roulant"]
[null,"Motricité : Système électronique ou informatisé de contrôle de l'environnement conçu exlusivement pour une personne dont la mobilité est limitée de façon importante et prolongée"]
[null,"Motricité : Coûts d'achat, de fonctionnement et d'entretien d'un appareil d'électrothérapie utilisé pour le traitement d'n problème de santé ou d'un handicap grave"]
[null,"Motricité : Coûts d'achat, de fonctionnement et d'entretien d'un appareil de verticalisation utilisé pour le traitement d'un handicap moteur grave"]
[null,"Syndrome de mort subite : Dispositif conçu pour un bébé, d'après un diagnostic, est sujet au syndrome de mort subite (alarme lorsque celui-ci arrête de respirer)"]
[null,"Troubles cardiaques : appareil conçu pour stimuler ou régulariser le cœur"]
[null,"Troubles de la vue : Lecteur optique utilisé par une personne atteinte de cécité pour transcrire instantanément un texte imprimé sous une forme analogue au braille"]
[null,"Troubles de la vue : Dispositif conçu exclusivement pour permettre à une personne atteinte de cécité partielle d'utiliser un ordinateur (système de parole synthétique, imprimante braille ou dispositif de grossissement des caractères à l'écran)"]
[null,"Troubles de la vue : Appareil permettant à une personne aveugle de prendre des notes en braille à l'aide d'un clavier et de se les faire relire ou de les imprimer ou de les afficher en braille"]
[null,"Troubles de la vue : Dispositif ou logiciel permettant à une personne aveugle ou ayant des troubles d'apprentissage grave de lire un texte imprimé"]
[null,"Troubles de la perception : Manuel parlé destiné à une personne qui souffre de troubles de la perception et qui est inscrite dans un établissement d'enseignement au Canada"]
[null,"Troubles de l'audition et de la parole : Synthétiseur de parole qui permet à une personne muette de communiquer à l'aide d'un clavier portatif"]
[null,"Troubles de l'audition et de la parole : décodeur de signaux de télévision, grâce auquel le texte des émissions est affiché à l'écran"]
[null,"Troubles de l'audition et de la parole : Téléimprimeur ou tout dispositif semblable comme un indicateur de sonnerie de poste téléphonique permettant à une personne sourde ou muette de faire ou de recevoir des appels"]
[null,"Troubles de l'audition et de la parole : Dispositif de signalisation visuelle ou vibratoire, comme une alarme-incendie visuelle à l'usage des personnes malentendantes"]
[null,"Troubles de l'audition et de la parole : Tableaux de symboles Bliss qui permettent aux personnes ayant des troubles de la parole de communiquer en montant des symboles ou en épelant des mots"]
[null,"Troubles de l'audition et de la parole : Coûts d'achat, de fonctionnement et d'entretien d'un appareil de retour auditif modifié utilisé pour le traitement des troubles de l'élocution"]
[null,"Troubles respiratoires : Tente à oxygène ou tout autre équipement nécessaire à l'administration d'oxygène, comme un masque à oxygène ou une bouteille d'oxygène comprimé"]
[null,"Troubles respiratoires : Dépenses engagées, y compris les frais d'électricité, pour le fonctionnement d'un concentrateur d'oxygène"]
[null,"Autre : Dispositif de compression des membres pour diminuer les tuméfactions causées par un lymphoedème chronique"]
[null,"Autre : Stimulateur électromagnétique de l'ostéogenèse utilisé pour le traitement des fractures non consolidées ou pour la reconstruction osseuse"]
[null,"Déficience grave et prolongée physique : Tourne page"]
[null,"Trouble de l'équilibre : Coûts d'achat, de fonctionnement et d'entretien d'un dispositif thérapeutique d'impulsion de pression"]
[null,"Autre : Dispositif de contrôle de la coagulation sanguine, y compris les accessoires pour une personne qui suit un traitement avec anticoagulants."]
[]
[]
[null,"CAS SPÉCIFIQUE SANS PRESCRIPTION"]
["Autre","Hernie : Bandage herniaire"]
[null,"Iléostomie ou colostomie : achat de tampons d'iléostomie ou de colostomie"]
[null,"Rein artificiel et les dépenses inhérentes à son installation"]
[null,"Maladie Coeliaque : frais supplémentaires déboursés pour l'achat de produits sans gluten (écart entre prix d'un produit régulier et prix du produit sans gluten)"]
[null,"Motricité : Achat ou location d'un corset orthopédique"]
[null,"Motricité : Achat ou location d'un membre artificiel"]
[null,"Motricité : Fourgonnette - 20 % du coût, qui au moment de l'achat ou dans les 6 mois suivants, est adaptée pour le transport d'une personne handicapée (maximum 5 000 $)"]
[null,"Poliomyélite : Achat ou location d'un lit à bascule pour les personnes ayant la poliomyélite"]
[null,"Troubles de la vue : Achat d'un œil artificiel"]
[null,"Troubles de l'audition et de la parole : Achat d'une prothèse vocale (laryngophone) ou auditive"]
[null,"Troubles de l'audition et de la parole : Frais pour les services d'interprétation de language gestuel payés à une personne dont l'entreprise consiste à fournir de tels services, pour une personne ayant une déficience d'élocution ou une déficience auditive"]
[null,"Troubles de l'audition et de la parole : Frais raisonnables liés à un programme de rééducation conçu pour pallier la perte de la parole ou de l'ouïe, comme les cours de lecture labiale et de langague gestuel"]
[null,"Troubles de l'audition et de la parole : Logiciel de reconnaissance vocale pour une personne qui, d'après le certificat d'un praticien, a besoin d'un tel logiciel en raison d'une déficience physique"]
[null,"Troubles respiratoires : achat ou la location d'un poumon d'acier"]
[null,"Autre : Frais engagés pour une greffe de moelle osseuse ou la transplantation d'un organe"]
[null,"Déficience grave et prolongée physique ou mentale : Frais payés pour les services de prise de notes payés à une entreprise qui offre de tels services "]
[null,"Maladie de peau : Achat de matériel de photothérapie utilisé pour le traitement du psoriasis ou autres maladies de peau "]
[null,"Autre : Médicaments et les instruments médicaux obtenus en vertu du Programme d'accès spécial de Santé Canada"]
[null,"Frais de transport si la distance à parcourir pour l'obtention de soins médicaux non offerts dans la localité où elle habite est d'au moins 40 km (indiquer le nombre de km)"]
[null,"Frais de transport si la distance à parcourir pour l'obtention de soins médicaux non offerts dans la localité où elle habite est d'au moins 80 km (inidquer le nombre de km)"]
[null,"Frais pour une cure de désintoxication"]
[null,"Frais payés pour des séances d'oxgénothérapie hyperbare pour les personne atteinte d'un trouble neurologique grave"]
[]
[null,"CAS D'EXCEPTION (nous contacter)"]
["Autre","Frais de déménagement : pour les personnes qui ne jouissent pas d'un développement physique normal ou qui a un handicap moteur grave et prolongé et qui permette à la personne d'avoir un logement plus accessible à sa condition (Frais raisonnable et maximum 2 000 $)"]
[null,"Certains frais de construction ou de transformation d'une résidence pour les personnes ne jouissant pas d'un développement physique normal ou qui a un handicap moteur grave et prolongé (nous contacter pour plus de renseignements)"]
[null,"Rémunération pour du tutorat (attestation obligatoire) à une personne qui n'a pas de lien de dépendance "]
[null,"Rémunération versée à un préposé : (attestation obligatoire) plusieurs conditions à remplir, veuillez nous contacter"]
[null,"Frais d'acquisition et d'entretien d'un animal dressé : plusieurs conditions à remplir, veuillez nous contacter"]

{"sheet":"Non admissibles","index":6,"n_rows":21,"n_cols":4,"rows_kept":21,"cut":false,"hidden":true,"merged":[[3,3,9,3],[13,3,16,3]]}
[]
["non admissible"]
[null,null,null,"Nom utilisé"]
["Injection (Esthétique)",null,null,"Traitement esthétique"]
["Botox"]
["Chirurgie esthétique"]
["Blanchiment des dents"]
["Épilation"]
["Enlèvement de tatouage"]
["Traitement des tâches au laser"]
["Massothérapeute",null,null,"Massothérapie"]
["Kinésithérapeute",null,null,"Kinésithérapie"]
["Lunette de soleil sans prescription",null,null,"Lunette soleil"]
["Vitamines ",null,null,"Non admissible (médicament)"]
["Produits naturels"]
["Produits homéopathiques"]
["Médicaments en vente libre"]
[]
[]
["Québec seulement"]
["Traitement in vitro (crédit d'impôt pour l'infertité doit compléter annexe xxx)",null,null,"Fertilité"]